Workbook

Sheet AER only (hidden)
B1: Data in these columns used for data validation and database purposes.
B2: Date last modified: | C2: 2017-01-16 | D2: added (Albury and Victora) for AGN
C3: 2016-10-17 | D3: updated TransGrid's correct legal name, corrected TasNetworks (T) to June financial year
C4: 2017-02-01 | D4: inserted Power and Water, added NRs (dms_FeederCat_1 and dms_FeederCat_2)
C5: 2017-03-03 | D5: inserted AEMO as a business | AB5: FOR ELECTRICITY BUSINESSES ONLY
C6: 2018-03-28 | D6: major changes to accommodate STPIS
C7: Template Version | D7: 5 | AB7: Feeder Types | AF7: TasNetworks (D) | AG7: MAIFI flag | AH7: Feeder Names
AB9: CBD | AC9: Urban | AD9: Short rural | AE9: long rural | AF9: EXTRA
B10: dms_TradingName_List | C10: dms_TradingNameFull_List | D10: dms_ABN_List | E10: dms_JurisdictionList | F10: dms_Sector_List | G10: dms_Segment_List | H10: dms_FormControl_List | I10: dms_RPT_List | J10: dms_RPTMonth_List | K10: dms_CRCPlength_List | L10: dms_FRCPlength_List | M10: dms_663_List | N10: dms_DeterminationRef_List | O10: dms_Addr1_List | P10: dms_Addr2_List | Q10: dms_Suburb_List | R10: dms_State_List | S10: dms_PostCode_List | T10: dms_PAddr1_List | U10: dms_PAddr2_List | V10: dms_PSuburb_List | W10: dms_PState_List | X10: dms_PPostCode_List | Y10: dms_ContactName1_List | Z10: dms_ContactPh1_List | AA10: dms_ContactEmail_List | AB10: dms_CBD_flag | AC10: dms_Urban_flag | AD10: dms_ShortRural_flag | AE10: dms_LongRural_flag | AF10: dms_FeederType_5_flag | AG10: dms_MAIFI_flag_List | AH10: dms_FeederName_1 | AI10: dms_FeederName_2 | AJ10: dms_FeederName_3 | AK10: dms_FeederName_4 | AL10: dms_FeederName_5 | AM10: dms_Public_Lighting_List | AN10: Column1
B11: ActewAGL Gas | C11: ActewAGL Gas | D11: 76670568688 | E11: ACT | F11: Gas | G11: Distribution | H11: Weighted average price cap | I11: Financial | J11: June | K11: 5 | L11: 5 | M11: x | O11: 40 Bunda Street | Q11: CANBERRA | R11: ACT | S11: 2600 | T11: GPO BOX 366 | V11: CANBERRA | W11: ACT | X11: 2601 | Y11: Philip Deamer | Z11: 02 6248 3438 | AA11: GasAAReview@actewagl.com.au | AB11: NO | AC11: NO | AD11: NO | AE11: NO | AF11: NO | AH11: CBD | AI11: Urban | AJ11: Short rural | AK11: Long rural | AM11: NO | AN11: ActewAGL Gas
B12: AGN (Albury and Victoria) | C12: Australian Gas Networks Limited (reporting data for Albury and Victoria) | D12: 19078551685 | E12: Vic | F12: Gas | G12: Distribution | H12: Weighted average price cap | I12: Calendar | J12: December | K12: 5 | L12: 5 | M12: x | O12: Level 6 | P12: 400 King William Street | Q12: ADELAIDE | R12: SA | S12: 5000 | T12: PO Box 6468 | U12: Halifax Street | V12: ADELAIDE | W12: SA | X12: 5000 | Y12: Craig de Laine | Z12: 08 8418 1129 | AA12: craig.delaine@agn.com.au | AB12: NO | AC12: NO | AD12: NO | AE12: NO | AF12: NO | AH12: CBD | AI12: Urban | AJ12: Short rural | AK12: Long rural | AM12: NO | AN12: AGN (Albury)
B13: AGN (Albury) | C13: Australian Gas Networks Limited (reporting data for Albury) | D13: 19078551685 | E13: Vic | F13: Gas | G13: Distribution | H13: Weighted average price cap | I13: Calendar | J13: December | K13: 5 | L13: 5 | M13: x | O13: Level 6 | P13: 400 King William Street | Q13: ADELAIDE | R13: SA | S13: 5000 | T13: PO Box 6468 | U13: Halifax Street | V13: ADELAIDE | W13: SA | X13: 5000 | Y13: Craig de Laine | Z13: 08 8418 1129 | AA13: craig.delaine@agn.com.au | AB13: NO | AC13: NO | AD13: NO | AE13: NO | AF13: NO | AH13: CBD | AI13: Urban | AJ13: Short rural | AK13: Long rural | AM13: NO
B14: AGN (SA) | C14: Australian Gas Networks Limited (reporting data for SA) | D14: 19078551685 | E14: SA | F14: Gas | G14: Distribution | H14: Weighted average price cap | I14: Financial | J14: June | K14: 5 | L14: 5 | M14: 5 | N14: distribution determination | O14: Level 6 | P14: 400 King William Street | Q14: ADELAIDE | R14: SA | S14: 5000 | T14: PO Box 6468 | U14: Halifax Street | V14: ADELAIDE | W14: SA | X14: 5000 | Y14: Craig de Laine | Z14: 08 8418 1129 | AA14: craig.delaine@agn.com.au | AB14: NO | AC14: NO | AD14: NO | AE14: NO | AF14: NO | AH14: CBD | AI14: Urban | AJ14: Short rural | AK14: Long rural | AM14: NO | AN14: AGN (SA)
B15: AGN (Victoria) | C15: Australian Gas Networks Limited (reporting data for Victoria) | D15: 19078551685 | E15: Vic | F15: Gas | G15: Distribution | H15: Weighted average price cap | I15: Calendar | J15: December | K15: 5 | L15: 5 | M15: x | O15: Level 6 | P15: 400 King William Street | Q15: ADELAIDE | R15: SA | S15: 5000 | T15: PO Box 6468 | U15: Halifax Street | V15: ADELAIDE | W15: SA | X15: 5000 | Y15: Craig de Laine | Z15: 08 8418 1129 | AA15: craig.delaine@agn.com.au | AB15: NO | AC15: NO | AD15: NO | AE15: NO | AF15: NO | AH15: CBD | AI15: Urban | AJ15: Short rural | AK15: Long rural | AM15: NO | AN15: AGN (Victoria)
B16: AusNet (Gas) | C16: AusNet Gas Services | D16: 086015036 | E16: Vic | F16: Gas | G16: Distribution | H16: Weighted average price cap | I16: Calendar | J16: December | K16: 5 | L16: 5 | M16: X | O16: Level 19, HSBC Building | P16: 580 George Street | Q16: SYDNEY | R16: NSW | S16: 2000 | T16: PO Box R41 | V16: ROYAL EXCHANGE | W16: NSW | X16: 1225 | Y16: Alexandra Curran | Z16: 02 9275 0020 | AA16: alexandra.curran@apa.com.au | AB16: NO | AC16: NO | AD16: NO | AE16: NO | AF16: NO | AH16: CBD | AI16: Urban | AJ16: Short rural | AK16: Long rural | AM16: NO | AN16: AusNet (Gas)
B17: Australian Distribution Co. (Gas) | C17: Australian Gas Distribution Co. | D17: 11222333444 | E17: NSW | F17: Gas | G17: Distribution | H17: Weighted average price cap | I17: Financial | J17: June | K17: 5 | L17: 5 | O17: 123 Straight Street | Q17: SYDNEY | R17: NSW | S17: 2000 | T17: PO Box 123 | V17: SYDNEY | W17: NSW | X17: 2000 | Y17: Bob Smith | Z17: 02 1234 5678 | AA17: bob@auselec.net.au | AB17: NO | AC17: NO | AD17: NO | AE17: NO | AF17: NO | AH17: CBD | AI17: Urban | AJ17: Short rural | AK17: Long rural | AM17: NO | AN17: Australian Distribution Co. (Vic)
B18: JGN | C18: Jemena Gas Networks (NSW) Ltd | D18: 003 004 322 | E18: NSW | F18: Gas | G18: Distribution | H18: Weighted average price cap | I18: Financial | J18: June | K18: 5 | L18: 5 | Y18: please provide contact details | AB18: NO | AC18: NO | AD18: NO | AE18: NO | AF18: NO | AH18: CBD | AI18: Urban | AJ18: Short rural | AK18: Long rural | AM18: NO | AN18: JGN
B19: Multinet Gas | C19: Multinet Gas (DB No.1) Pty Ltd (ACN 086 026 986), Multinet Gas (DB No.2) Pty Ltd (ACN 086 230 122) | D19: 086026986 | E19: Vic | F19: Gas | G19: Distribution | H19: Weighted average price cap | I19: Calendar | J19: December | K19: 5 | L19: 5 | M19: x | O19: 43-45 Centreway | Q19: MT WAVERLEY | R19: Vic | S19: 3149 | Y19: Andrew Schille | Z19: 03 8846 9860 | AA19: andrew.schille@ue.com.au | AB19: NO | AC19: NO | AD19: NO | AE19: NO | AF19: NO | AH19: CBD | AI19: Urban | AJ19: Short rural | AK19: Long rural | AM19: NO | AN19: Multinet Gas
Z22: For EB & Reset RINs only | AE22: For AARs only
B23: The Reg Year Ending (dms_RYE) must be set to the last year of the regulatory period. For forecast data is is usually (FRCP_y5) for actual it is a single year (CRY). For historical actual data the RYE will need to be set manually in the business details sheet by setting the dms_Multiyear_flag to 1 and putting the correct value in 'dms_Specified_FinalYear. See cells C67:C68 | N23: Drop down selector box for CA & Reset RINs. | O23: For CA & Reset RINs only | Z23: for DNSP only | AE23: For DNSPs only
B24: dms_Model_List | C24: dms_Worksheet_List | E24: dms_RYE_Formula_Result | N24: dms_0203_ProjectType | O24: dms_020303_01_UOM | P24: dms_020501_01_UOM | Q24: dms_020501_02_UOM | R24: dms_020501_03_UOM | S24: dms_020501_04_UOM | T24: dms_020603_01_UOM | U24: dms_020701_01_UOM | V24: dms_020701_02_UOM | W24: dms_020701_01_Rows | X24: dms_040102_01_UOM | Y24: dms_040102_04_UOM | Z24: dms_030601_01_UOM | AA24: dms_030601_02_UOM | AB24: dms_030701_01_UOM | AC24: dms_030702_01_UOM | AD24: dms_030703_01_UOM | AE24: dms_030605_UOM | AF24: dms_03060703_UOM
B25: ARR | C25: ANNUAL REPORTING STATEMENT | E25: =LEFT(dms_SingleYear_FinalYear_Result,2)&RIGHT(dms_SingleYear_FinalYear_Result,2) -> noIN | F25: =LEFT(dms_SingleYear_FinalYear_Result,2)&RIGHT(dms_SingleYear_FinalYear_Result,2) | H25: Formula errors are OK | N25: New line on new route - single circuit | O25: Circuit line length in km | P25: 0's | Q25: 0's | R25: 0's | S25: 0's | T25: 0's | U25: km | V25: km | W25: Route line length within zone | X25: 0's | Y25: days | Z25: minutes/customer | AA25: minutes/customer | AB25: Customer / km | AC25: % | AD25: km | AE25: number | AF25: number
B26: CA | C26: CATEGORY ANALYSIS | E26: =LEFT(dms_SingleYear_FinalYear_Result,2)&RIGHT(dms_SingleYear_FinalYear_Result,2) -> noIN | F26: =LEFT(dms_SingleYear_FinalYear_Result,2)&RIGHT(dms_SingleYear_FinalYear_Result,2) | H26: Formula errors are OK | N26: New line on new route - dual circuit | O26: Circuit line length in km | P26: 0's | Q26: 0's | R26: 0's | S26: 0's | T26: 0's | U26: 0's | V26: 0's | W26: Number of maintenance spans | X26: 0's | Y26: 0's | Z26: minutes/customer | AA26: minutes/customer | AB26: MWh/customer | AC26: Number of spans | AE26: number | AF26: number
B27: CPI | C27: CPI | N27: New line on new route - other | O27: Circuit line length in km | P27: MVA added | Q27: MVA added | R27: MVA added | S27: MVA added | T27: 0's | U27: km | V27: km | W27: Total length of maintenance spans | X27: 0's | Y27: $0s | Z27: interruptions/customer | AA27: interruptions/customer | AB27: kVA / customer | AC27: Number of spans | AE27: number | AF27: number
B28: EB | C28: ECONOMIC BENCHMARKING | E28: =LEFT(dms_SingleYear_FinalYear_Result,2)&RIGHT(dms_SingleYear_FinalYear_Result,2) -> noIN | F28: =LEFT(dms_SingleYear_FinalYear_Result,2)&RIGHT(dms_SingleYear_FinalYear_Result,2) | H28: Formula errors are OK | N28: Line rebuild over existing route - single circuit | O28: Circuit line length in km | P28: 0's | Q28: 0's | R28: 0's | S28: 0's | T28: 0's | U28: km | V28: km | W28: Length of vegetation corridors | X28: $0s | Y28: 0's | Z28: interruptions/customer | AA28: interruptions/customer | AC28: Number of spans | AE28: number | AF28: number
B29: PTRM | C29: POST TAX REVENUE MODEL | E29: =LEFT(dms_MultiYear_FinalYear_Result,2)&RIGHT(dms_MultiYear_FinalYear_Result,2) -> 2026 | F29: =LEFT(dms_MultiYear_FinalYear_Result,2)&RIGHT(dms_MultiYear_FinalYear_Result,2) | N29: Line rebuild over existing route - dual circuit | O29: Number | P29: total spend $0s | Q29: total spend $0s | R29: total spend $0s | S29: total spend $0s | T29: (per cent) | U29: 0's | V29: 0's | W29: Average number of trees per maintenance span | AC29: Number of spans | AE29: number | AF29: (per cent)
B30: Reset | C30: REGULATORY REPORTING STATEMENT | E30: =LEFT(dms_MultiYear_FinalYear_Result,2)&RIGHT(dms_MultiYear_FinalYear_Result,2) -> 2026 | F30: =LEFT(dms_MultiYear_FinalYear_Result,2)&RIGHT(dms_MultiYear_FinalYear_Result,2) | H30: Formula errors are OK | N30: Reconductor - Single circuit | O30: Number | P30: net circuit km added | Q30: net circuit km added | R30: net circuit km added | S30: net circuit km added | U30: years | V30: years | W30: Average frequency of cutting cycle | AC30: Years | AE30: number
B31: RFM | C31: ROLL FORWARD MODEL | E31: =LEFT(dms_CRCP_FinalYear_Result,2)&RIGHT(dms_CRCP_FinalYear_Result,2) -> 2021 | F31: =LEFT(dms_CRCP_FinalYear_Result,2)&RIGHT(dms_CRCP_FinalYear_Result,2) | N31: Reconductor - Dual circuit | O31: Number | P31: total spend $0s | Q31: total spend $0s | R31: total spend $0s | S31: total spend $0s | AC31: Years | AE31: number
B32: WACC | C32: WEIGHTED AVERAGE COST OF CAPITAL | E32: =LEFT(dms_MultiYear_FinalYear_Result,2)&RIGHT(dms_MultiYear_FinalYear_Result,2) -> 2026 | F32: =LEFT(dms_MultiYear_FinalYear_Result,2)&RIGHT(dms_MultiYear_FinalYear_Result,2) | N32: Other | P32: net circuit km added | Q32: net circuit km added | R32: net circuit km added | S32: net circuit km added | AC32: Trees | AE32: number
P33: total spend $0s | Q33: total spend $0s | R33: total spend $0s | S33: total spend $0s | AC33: Trees | AE33: number
B34: dms_DataQuality_List | P34: 0's | R34: $0s | AC34: Defects | AE34: number
B35: Actual | P35: 0's | AC35: Defects | AE35: number
B36: Estimate | P36: 0's | AC36: Spans | AE36: number
B37: Consolidated | P37: $0s | AC37: km | AE37: (per cent)
B38: Recast | AC38: Spans | AE38: (per cent)
B39: Public
B41: For all files either AER or business needs to be able to specify the type of submission | C41: For PTRM & RFM templates we must provide a choice in case they change their form of control - otherwise it is drawn from the business specific lookup table above. | O41: For PTRM files - this field set the text for the named range "DMS_Xfactor" which in all cases is simply the text "x factors" - this saves putting in each old gas PTRM file | Z41: for TNSP only
B42: dms_SourceList | C42: dms_FormControl_Choices | O42: DMS_Xfactor | Z42: dms_030601_01_UOM | AB42: dms_030701_01_UOM | AC42: dms_030702_01_UOM
B43: After appeal | C43: Revenue cap | O43: x factors | Z43: % | AB43: Number of spans | AC43: km
B44: Draft decision | C44: Revenue yield | Z44: number | AB44: Years | AC44: %
B45: Final decision | C45: Weighted average price cap | Z45: number | AB45: Trees | AC45: km
B46: PTRM update 1 | Z46: % | AB46: Defects | AC46: number
B47: PTRM update 2 | Z47: number | AB47: Number of spans
B48: PTRM update 3 | Z48: number | AB48: km
B49: PTRM update 4 | Z49: % | AB49: km
B50: PTRM update 5 | Z50: number | AB50: Number of spans
B51: PTRM update 6 | Z51: number
B52: PTRM update 7 | Z52: %
B53: Regulatory proposal | Z53: number
B54: Reporting | Z54: %
B55: Revised regulatory proposal | Z55: number
Z56: %
Z57: number
B61: Reason for interruption | C61: dms_Reason_Interruption_Detailed | D61: dms_Reason_Interruption | E61: dms_STPIS_Exclusion_List | F61: dms_020301_ProjectType_List | G61: dms_020302_ProjectType_List
B62: Animal | C62: Animal impact | D62: Animal | E62: Weather | F62: New substation establishment | G62: New line on new route - single circuit
C63: Animal nesting/burrowing, etc and other | D63: Asset failure | E63: Equipment failure | F63: Capacity upgrade | G63: New line on new route - dual circuit
C64: Other | D64: Other | E64: Operational error | F64: Voltage upgrade | G64: New line on new route - other
B65: Asset failure | C65: LV | D65: Overloads | E65: Vegetation | F65: Other | G65: Line rebuild over existing route - single circuit
C66: Distribution substation | D66: Planned | E66: Animals | G66: Line rebuild over existing route - dual circuit
C67: HV | D67: Network business | E67: Third party impacts | G67: Reconductor - Single circuit
C68: Zone substation | D68: Third party | E68: Transmission failure | G68: Reconductor - Dual circuit
C69: Subtransmission | D69: Unknown | E69: Load shedding | G69: Reconductor - Other
B70: Other | C70: insert description of 'other' | D70: Vegetation | E70: Inter-distributor connection failure | G70: Line upgrade - raising/retensoring
B71: Overloads | C71: - | D71: Weather | E71: Other | G71: Line upgrade - voltage upgrade
B72: Planned | C72: - | D72: 2 - STPIS Exclusion (3.3)(a) | G72: Line upgrade - capacity
B73: Network business | C73: Network error | D73: 3 - STPIS Exclusion (3.3)(a) | G73: String spare circuit
C74: Switching and protection error | D74: 4 - STPIS Exclusion (3.3)(a) | G74: Other
B75: Third party | C75: Fire | D75: 5 - STPIS Exclusion (3.3)(a)
C76: Other | D76: 6 - STPIS Exclusion (3.3)(a)
C77: Dig-in | D77: 7 - STPIS Exclusion (3.3)(a)
C78: Unauthorised access
C79: Vehicle impact
B80: Unknown | C80: Unknown
B81: Vegetation | C81: Blow-in/Fall-in - NSP responsibility
C82: Grow-in - NSP responsibility
C83: Blow-in/Fall-in - Other responsible party
C84: Grow-in - Other responsible party
B85: Weather
B86: 2 - STPIS Exclusion (3.3)(a)
B87: 3 - STPIS Exclusion (3.3)(a)
B88: 4 - STPIS Exclusion (3.3)(a)
B89: 5 - STPIS Exclusion (3.3)(a)
B90: 6 - STPIS Exclusion (3.3)(a)
B91: 7 - STPIS Exclusion (3.3)(a)
B99: These are indeces and lookup values for various dates. All step from the value placed in FRCP_y1 on the business and other details worksheet | C99: =IF(dms_FifthFeeder_flag_NSP="NO","This NSP has only 4 feeder categories","This NSP has 5 feeder categories") -> This NSP has only 4 feeder categories | O99: These date tables are currently used in the Recast templates to provide column headings and conditional formatting
B100: dms_FRCPlength_Num_List | C100: dms_FinalYear_List | D100: dms_CRCPlength_Num_List | E100: dms_CFinalYear_List | F100: dms_FRCP_years | H100: dms_CRCP_years | J100: dms_CRCP_index | L100: dms_Financial_Years | M100: dms_Calendar_Years | O100: CRY from input cell on business sheet | P100: CRY - financial | Q100: dms_FinYears | R100: CRY calendar | S100: dms_CalYears
B101: 1 | C101: dms_FRCP_y1 | D101: 1 | E101: CRCP_y1 | F101: =FRCP_y1 -> 2021-22 | G101: dms_FRCP_y1 | H101: =IF(dms_RPT="financial",VALUE(LEFT(dms_FRCP_y1,4)-1)&"-"&TEXT(VALUE(MID(dms_FRCP_y1,3,2)),"00"),VALUE(LEFT(dms_FRCP_y1,4)-1)) -> 2020-21 | I101: dms_CRCP_yZ | J101: 1 | L101: 2005-06 | M101: 2006 | O101: =CRY -> 2018-19 | P101: =VALUE(LEFT(CRY,4))&"-"&TEXT(MID(CRY,3,2)+1,"00") -> 2018-19 | Q101: dms_CRYf_y1 | R101: =VALUE(LEFT(CRY,4)+1) -> 2019 | S101: dms_CRYc_y1
B102: 2 | C102: dms_FRCP_y2 | D102: 2 | E102: CRCP_y2 | F102: =IF(dms_RPT="financial",VALUE(LEFT(dms_FRCP_y1,4)+1)&"-"&TEXT(VALUE(RIGHT(dms_FRCP_y1,2)+1),"00"),VALUE(LEFT(dms_FRCP_y1,4)+1)) -> 2022-23 | G102: dms_FRCP_y2 | H102: =IF(dms_RPT="financial",VALUE(LEFT(dms_CRCP_yZ,4)-1)&"-"&TEXT(VALUE(MID(dms_CRCP_yZ,3,2)),"00"),VALUE(LEFT(dms_CRCP_yZ,4)-1)) -> 2019-20 | I102: dms_CRCP_yY | J102: 2 | L102: 2006-07 | M102: 2007 | P102: =VALUE(LEFT(dms_CRYf_y1,4)+1)&"-"&TEXT(MID(dms_CRYf_y1,3,2)+2,"00") -> 2019-20 | Q102: dms_CRYf_y2 | R102: =VALUE(LEFT(dms_CRYc_y1,4)+1) -> 2020 | S102: dms_CRYc_y2
B103: 3 | C103: dms_FRCP_y3 | D103: 3 | E103: CRCP_y3 | F103: =IF(dms_RPT="financial",VALUE(LEFT(dms_FRCP_y2,4)+1)&"-"&TEXT(VALUE(RIGHT(dms_FRCP_y2,2)+1),"00"),VALUE(LEFT(dms_FRCP_y2,4)+1)) -> 2023-24 | G103: dms_FRCP_y3 | H103: =IF(dms_RPT="financial",VALUE(LEFT(dms_CRCP_yY,4)-1)&"-"&TEXT(VALUE(MID(dms_CRCP_yY,3,2)),"00"),VALUE(LEFT(dms_CRCP_yY,4)-1)) -> 2018-19 | I103: dms_CRCP_yX | J103: 3 | L103: 2007-08 | M103: 2008 | P103: =VALUE(LEFT(dms_CRYf_y2,4)+1)&"-"&TEXT(MID(dms_CRYf_y2,3,2)+2,"00") -> 2020-21 | Q103: dms_CRYf_y3 | R103: =VALUE(LEFT(dms_CRYc_y2,4)+1) -> 2021 | S103: dms_CRYc_y3
B104: 4 | C104: dms_FRCP_y4 | D104: 4 | E104: CRCP_y4 | F104: =IF(dms_RPT="financial",VALUE(LEFT(dms_FRCP_y3,4)+1)&"-"&TEXT(VALUE(RIGHT(dms_FRCP_y3,2)+1),"00"),VALUE(LEFT(dms_FRCP_y3,4)+1)) -> 2024-25 | G104: dms_FRCP_y4 | H104: =IF(dms_RPT="financial",VALUE(LEFT(dms_CRCP_yX,4)-1)&"-"&TEXT(VALUE(MID(dms_CRCP_yX,3,2)),"00"),VALUE(LEFT(dms_CRCP_yX,4)-1)) -> 2017-18 | I104: dms_CRCP_yW | J104: 4 | L104: 2008-09 | M104: 2009 | P104: =VALUE(LEFT(dms_CRYf_y3,4)+1)&"-"&TEXT(MID(dms_CRYf_y3,3,2)+2,"00") -> 2021-22 | Q104: dms_CRYf_y4 | R104: =VALUE(LEFT(dms_CRYc_y3,4)+1) -> 2022 | S104: dms_CRYc_y4
B105: 5 | C105: dms_FRCP_y5 | D105: 5 | E105: CRCP_y5 | F105: =IF(dms_RPT="financial",VALUE(LEFT(dms_FRCP_y4,4)+1)&"-"&TEXT(VALUE(RIGHT(dms_FRCP_y4,2)+1),"00"),VALUE(LEFT(dms_FRCP_y4,4)+1)) -> 2025-26 | G105: dms_FRCP_y5 | H105: =IF(dms_RPT="financial",VALUE(LEFT(dms_CRCP_yW,4)-1)&"-"&TEXT(VALUE(MID(dms_CRCP_yW,3,2)),"00"),VALUE(LEFT(dms_CRCP_yW,4)-1)) -> 2016-17 | I105: dms_CRCP_yV | J105: 5 | L105: 2009-10 | M105: 2010 | P105: =VALUE(LEFT(dms_CRYf_y4,4)+1)&"-"&TEXT(MID(dms_CRYf_y4,3,2)+2,"00") -> 2022-23 | Q105: dms_CRYf_y5 | R105: =VALUE(LEFT(dms_CRYc_y4,4)+1) -> 2023 | S105: dms_CRYc_y5
B106: 6 | C106: dms_FRCP_y6 | D106: 6 | E106: CRCP_y6 | F106: =IF(dms_RPT="financial",VALUE(LEFT(dms_FRCP_y5,4)+1)&"-"&TEXT(VALUE(RIGHT(dms_FRCP_y5,2)+1),"00"),VALUE(LEFT(dms_FRCP_y5,4)+1)) -> 2026-27 | G106: dms_FRCP_y6 | H106: =IF(dms_RPT="financial",VALUE(LEFT(dms_CRCP_yV,4)-1)&"-"&TEXT(VALUE(MID(dms_CRCP_yV,3,2)),"00"),VALUE(LEFT(dms_CRCP_yV,4)-1)) -> 2015-16 | I106: dms_CRCP_yU | J106: 6 | L106: 2010-11 | M106: 2011 | P106: =VALUE(LEFT(dms_CRYf_y5,4)+1)&"-"&TEXT(MID(dms_CRYf_y5,3,2)+2,"00") -> 2023-24 | Q106: dms_CRYf_y6 | R106: =VALUE(LEFT(dms_CRYc_y5,4)+1) -> 2024 | S106: dms_CRYc_y6
B107: 7 | C107: dms_FRCP_y7 | D107: 7 | E107: CRCP_y7 | F107: =IF(dms_RPT="financial",VALUE(LEFT(dms_FRCP_y6,4)+1)&"-"&TEXT(VALUE(RIGHT(dms_FRCP_y6,2)+1),"00"),VALUE(LEFT(dms_FRCP_y6,4)+1)) -> 2027-28 | G107: dms_FRCP_y7 | H107: =IF(dms_RPT="financial",VALUE(LEFT(dms_CRCP_yU,4)-1)&"-"&TEXT(VALUE(MID(dms_CRCP_yU,3,2)),"00"),VALUE(LEFT(dms_CRCP_yU,4)-1)) -> 2014-15 | I107: dms_CRCP_yT | J107: 7 | L107: 2011-12 | M107: 2012 | P107: =VALUE(LEFT(dms_CRYf_y6,4)+1)&"-"&TEXT(MID(dms_CRYf_y6,3,2)+2,"00") -> 2024-25 | Q107: dms_CRYf_y7 | R107: =VALUE(LEFT(dms_CRYc_y6,4)+1) -> 2025 | S107: dms_CRYc_y7
B108: 8 | C108: dms_FRCP_y8 | D108: 8 | E108: CRCP_y8 | F108: =IF(dms_RPT="financial",VALUE(LEFT(dms_FRCP_y7,4)+1)&"-"&TEXT(VALUE(RIGHT(dms_FRCP_y7,2)+1),"00"),VALUE(LEFT(dms_FRCP_y7,4)+1)) -> 2028-29 | G108: dms_FRCP_y8 | H108: =IF(dms_RPT="financial",VALUE(LEFT(dms_CRCP_yT,4)-1)&"-"&TEXT(VALUE(MID(dms_CRCP_yT,3,2)),"00"),VALUE(LEFT(dms_CRCP_yT,4)-1)) -> 2013-14 | I108: dms_CRCP_yS | J108: 8 | L108: 2012-13 | M108: 2013 | P108: =VALUE(LEFT(dms_CRYf_y7,4)+1)&"-"&TEXT(MID(dms_CRYf_y7,3,2)+2,"00") -> 2025-26 | Q108: dms_CRYf_y8 | R108: =VALUE(LEFT(dms_CRYc_y7,4)+1) -> 2026 | S108: dms_CRYc_y8
B109: 9 | C109: dms_FRCP_y9 | D109: 9 | E109: CRCP_y9 | F109: =IF(dms_RPT="financial",VALUE(LEFT(dms_FRCP_y8,4)+1)&"-"&TEXT(VALUE(RIGHT(dms_FRCP_y8,2)+1),"00"),VALUE(LEFT(dms_FRCP_y8,4)+1)) -> 2029-30 | G109: dms_FRCP_y9 | H109: =IF(dms_RPT="financial",VALUE(LEFT(dms_CRCP_yS,4)-1)&"-"&TEXT(VALUE(MID(dms_CRCP_yS,3,2)),"00"),VALUE(LEFT(dms_CRCP_yS,4)-1)) -> 2012-13 | I109: dms_CRCP_yR | J109: 9 | L109: 2013-14 | M109: 2014 | P109: =VALUE(LEFT(dms_CRYf_y8,4)+1)&"-"&TEXT(MID(dms_CRYf_y8,3,2)+2,"00") -> 2026-27 | Q109: dms_CRYf_y9 | R109: =VALUE(LEFT(dms_CRYc_y8,4)+1) -> 2027 | S109: dms_CRYc_y9
B110: 10 | C110: dms_FRCP_y10 | D110: 10 | E110: CRCP_y10 | F110: =IF(dms_RPT="financial",VALUE(LEFT(dms_FRCP_y9,4)+1)&"-"&TEXT(VALUE(RIGHT(dms_FRCP_y9,2)+1),"00"),VALUE(LEFT(dms_FRCP_y9,4)+1)) -> 2030-31 | G110: dms_FRCP_y10 | H110: =IF(dms_RPT="financial",VALUE(LEFT(dms_CRCP_yR,4)-1)&"-"&TEXT(VALUE(MID(dms_CRCP_yR,3,2)),"00"),VALUE(LEFT(dms_CRCP_yR,4)-1)) -> 2011-12 | I110: dms_CRCP_yQ | J110: 10 | L110: 2014-15 | M110: 2015 | P110: =VALUE(LEFT(dms_CRYf_y9,4)+1)&"-"&TEXT(MID(dms_CRYf_y9,3,2)+2,"00") -> 2027-28 | Q110: dms_CRYf_y10 | R110: =VALUE(LEFT(dms_CRYc_y9,4)+1) -> 2028 | S110: dms_CRYc_y10
B111: 11 | C111: dms_FRCP_y11 | D111: 11 | E111: CRCP_y11 | F111: =IF(dms_RPT="financial",VALUE(LEFT(dms_FRCP_y10,4)+1)&"-"&TEXT(VALUE(RIGHT(dms_FRCP_y10,2)+1),"00"),VALUE(LEFT(dms_FRCP_y10,4)+1)) -> 2031-32 | G111: dms_FRCP_y11 | H111: =IF(dms_RPT="financial",VALUE(LEFT(dms_CRCP_yQ,4)-1)&"-"&TEXT(VALUE(MID(dms_CRCP_yQ,3,2)),"00"),VALUE(LEFT(dms_CRCP_yQ,4)-1)) -> 2010-11 | I111: dms_CRCP_yP | J111: 11 | L111: 2015-16 | M111: 2016 | P111: =VALUE(LEFT(dms_CRYf_y10,4)+1)&"-"&TEXT(MID(dms_CRYf_y10,3,2)+2,"00") -> 2028-29 | Q111: dms_CRYf_y11 | R111: =VALUE(LEFT(dms_CRYc_y10,4)+1) -> 2029 | S111: dms_CRYc_y11
B112: 12 | C112: dms_FRCP_y12 | D112: 12 | E112: CRCP_y12 | F112: =IF(dms_RPT="financial",VALUE(LEFT(dms_FRCP_y11,4)+1)&"-"&TEXT(VALUE(RIGHT(dms_FRCP_y11,2)+1),"00"),VALUE(LEFT(dms_FRCP_y11,4)+1)) -> 2032-33 | G112: dms_FRCP_y12 | H112: =IF(dms_RPT="financial",VALUE(LEFT(dms_CRCP_yP,4)-1)&"-"&TEXT(VALUE(MID(dms_CRCP_yP,3,2)),"00"),VALUE(LEFT(dms_CRCP_yP,4)-1)) -> 2009-10 | I112: dms_CRCP_yO | J112: 12 | L112: 2016-17 | M112: 2017 | P112: =VALUE(LEFT(dms_CRYf_y11,4)+1)&"-"&TEXT(MID(dms_CRYf_y11,3,2)+2,"00") -> 2029-30 | Q112: dms_CRYf_y12 | R112: =VALUE(LEFT(dms_CRYc_y11,4)+1) -> 2030 | S112: dms_CRYc_y12
B113: 13 | C113: dms_FRCP_y13 | D113: 13 | E113: CRCP_y13 | F113: =IF(dms_RPT="financial",VALUE(LEFT(dms_FRCP_y12,4)+1)&"-"&TEXT(VALUE(RIGHT(dms_FRCP_y12,2)+1),"00"),VALUE(LEFT(dms_FRCP_y12,4)+1)) -> 2033-34 | G113: dms_FRCP_y13 | H113: =IF(dms_RPT="financial",VALUE(LEFT(dms_CRCP_yO,4)-1)&"-"&TEXT(VALUE(MID(dms_CRCP_yO,3,2)),"00"),VALUE(LEFT(dms_CRCP_yO,4)-1)) -> 2008-09 | I113: dms_CRCP_yN | J113: 13 | L113: 2017-18 | M113: 2018 | P113: =VALUE(LEFT(dms_CRYf_y12,4)+1)&"-"&TEXT(MID(dms_CRYf_y12,3,2)+2,"00") -> 2030-31 | Q113: dms_CRYf_y13 | R113: =VALUE(LEFT(dms_CRYc_y12,4)+1) -> 2031 | S113: dms_CRYc_y13
B114: 14 | C114: dms_FRCP_y14 | D114: 14 | E114: CRCP_y14 | F114: =IF(dms_RPT="financial",VALUE(LEFT(dms_FRCP_y13,4)+1)&"-"&TEXT(VALUE(RIGHT(dms_FRCP_y13,2)+1),"00"),VALUE(LEFT(dms_FRCP_y13,4)+1)) -> 2034-35 | G114: dms_FRCP_y14 | H114: =IF(dms_RPT="financial",VALUE(LEFT(dms_CRCP_yN,4)-1)&"-"&TEXT(VALUE(MID(dms_CRCP_yN,3,2)),"00"),VALUE(LEFT(dms_CRCP_yN,4)-1)) -> 2007-08 | I114: dms_CRCP_yM | J114: 14 | L114: 2018-19 | M114: 2019 | P114: =VALUE(LEFT(dms_CRYf_y13,4)+1)&"-"&TEXT(MID(dms_CRYf_y13,3,2)+2,"00") -> 2031-32 | Q114: dms_CRYf_y14 | R114: =VALUE(LEFT(dms_CRYc_y13,4)+1) -> 2032 | S114: dms_CRYc_y14
B115: 15 | C115: dms_FRCP_y15 | D115: 15 | E115: CRCP_y15 | F115: =IF(dms_RPT="financial",VALUE(LEFT(dms_FRCP_y14,4)+1)&"-"&TEXT(VALUE(RIGHT(dms_FRCP_y14,2)+1),"00"),VALUE(LEFT(dms_FRCP_y14,4)+1)) -> 2035-36 | G115: dms_FRCP_y15 | H115: =IF(dms_RPT="financial",VALUE(LEFT(dms_CRCP_yM,4)-1)&"-"&TEXT(VALUE(MID(dms_CRCP_yM,3,2)),"00"),VALUE(LEFT(dms_CRCP_yM,4)-1)) -> 2006-07 | I115: dms_CRCP_yL | J115: 15 | L115: 2019-20 | M115: 2020 | P115: =VALUE(LEFT(dms_CRYf_y14,4)+1)&"-"&TEXT(MID(dms_CRYf_y14,3,2)+2,"00") -> 2032-33 | Q115: dms_CRYf_y15 | R115: =VALUE(LEFT(dms_CRYc_y14,4)+1) -> 2033 | S115: dms_CRYc_y15
L116: 2020-21 | M116: 2021 | P116: =VALUE(LEFT(dms_CRYf_y15,4)+1)&"-"&TEXT(MID(dms_CRYf_y15,3,2)+2,"00") -> 2033-34 | Q116: dms_CRYf_y16 | R116: =VALUE(LEFT(dms_CRYc_y15,4)+1) -> 2034 | S116: dms_CRYc_y16
B117: These are drop down lists for businesses to select the correct FRCP_y1 on the business and other details worksheet. This also populates the column headings in the worksheets | L117: 2021-22 | M117: 2022 | P117: =VALUE(LEFT(dms_CRYf_y16,4)+1)&"-"&TEXT(MID(dms_CRYf_y16,3,2)+2,"00") -> 2034-35 | Q117: dms_CRYf_y17 | R117: =VALUE(LEFT(dms_CRYc_y16,4)+1) -> 2035 | S117: dms_CRYc_y17
B118: dms_RCP_fyear_list | C118: dms_CRY_ListF | D118: dms_CRY_ListC | E118: dms_RCP_cyear_list | F118: dms_FRCP_fyear_list | G118: dms_FRCP_ListF | H118: dms_FRCP_ListC | I118: dms_FRCP_cyear_list | L118: 2022-23 | M118: 2023 | P118: =VALUE(LEFT(dms_CRYf_y17,4)+1)&"-"&TEXT(MID(dms_CRYf_y17,3,2)+2,"00") -> 2035-36 | Q118: dms_CRYf_y18 | R118: =VALUE(LEFT(dms_CRYc_y17,4)+1) -> 2036 | S118: dms_CRYc_y18
B119: dms_y1 | C119: =CRY -> 2018-19 | D119: 2006 | E119: dms_cy1 | F119: dms_frcp_fy1 | G119: 2010-11 | H119: 2011 | I119: dms_crcp_cy1 | L119: 2023-24 | M119: 2024 | P119: =VALUE(LEFT(dms_CRYf_y18,4)+1)&"-"&TEXT(MID(dms_CRYf_y18,3,2)+2,"00") -> 2036-37 | Q119: dms_CRYf_y19 | R119: =VALUE(LEFT(dms_CRYc_y18,4)+1) -> 2037 | S119: dms_CRYc_y19
B120: dms_y2 | C120: =IF(dms_RPT="financial",VALUE(LEFT(CRY,4)+1)&"-"&TEXT(MID(CRY,3,2)+2,"00"),VALUE(LEFT(CRY,4)+1)) -> 2019-20 | D120: 2007 | E120: dms_cy2 | F120: dms_frcp_fy2 | G120: 2011-12 | H120: 2012 | I120: dms_crcp_cy2 | L120: 2024-25 | M120: 2025 | P120: =VALUE(LEFT(dms_CRYf_y19,4)+1)&"-"&TEXT(MID(dms_CRYf_y19,3,2)+2,"00") -> 2037-38 | Q120: dms_CRYf_y20 | R120: =VALUE(LEFT(dms_CRYc_y19,4)+1) -> 2038 | S120: dms_CRYc_y20
B121: dms_y3 | C121: =IF(dms_RPT="financial",VALUE(LEFT(dms_fy2,4)+1)&"-"&TEXT(MID(dms_fy2,3,2)+2,"00"),VALUE(LEFT(dms_fy2,4)+1)) -> 2020-21 | D121: 2008 | E121: dms_cy3 | F121: dms_frcp_fy3 | G121: 2012-13 | H121: 2013 | I121: dms_crcp_cy3 | L121: 2025-26 | M121: 2026
B122: dms_y4 | C122: =IF(dms_RPT="financial",VALUE(LEFT(dms_fy3,4)+1)&"-"&TEXT(MID(dms_fy3,3,2)+2,"00"),VALUE(LEFT(dms_fy3,4)+1)) -> 2021-22 | D122: 2009 | E122: dms_cy4 | F122: dms_frcp_fy4 | G122: 2013-14 | H122: 2014 | I122: dms_crcp_cy4 | L122: 2026-27 | M122: 2027
B123: dms_y5 | C123: =IF(dms_RPT="financial",VALUE(LEFT(dms_fy4,4)+1)&"-"&TEXT(MID(dms_fy4,3,2)+2,"00"),VALUE(LEFT(dms_fy4,4)+1)) -> 2022-23 | D123: 2010 | E123: dms_cy5 | F123: dms_frcp_fy5 | G123: 2014-15 | H123: 2015 | I123: dms_crcp_cy5 | L123: 2027-28 | M123: 2028
B124: dms_y6 | C124: =IF(dms_RPT="financial",VALUE(LEFT(dms_fy5,4)+1)&"-"&TEXT(MID(dms_fy5,3,2)+2,"00"),VALUE(LEFT(dms_fy5,4)+1)) -> 2023-24 | D124: 2011 | E124: dms_cy6 | F124: dms_frcp_fy6 | G124: 2015-16 | H124: 2016 | I124: dms_crcp_cy6 | L124: 2028-29 | M124: 2029
B125: dms_y7 | C125: =IF(dms_RPT="financial",VALUE(LEFT(dms_fy6,4)+1)&"-"&TEXT(MID(dms_fy6,3,2)+2,"00"),VALUE(LEFT(dms_fy6,4)+1)) -> 2024-25 | D125: 2012 | E125: dms_cy7 | F125: dms_frcp_fy7 | G125: 2016-17 | H125: 2017 | I125: dms_crcp_cy7 | L125: 2029-30 | M125: 2030
B126: dms_y8 | C126: =IF(dms_RPT="financial",VALUE(LEFT(dms_fy7,4)+1)&"-"&TEXT(MID(dms_fy7,3,2)+2,"00"),VALUE(LEFT(dms_fy7,4)+1)) -> 2025-26 | D126: 2013 | E126: dms_cy8 | F126: dms_frcp_fy8 | G126: 2017-18 | H126: 2018 | I126: dms_crcp_cy8 | L126: 2030-31 | M126: 2031
B127: dms_y9 | C127: =IF(dms_RPT="financial",VALUE(LEFT(dms_fy8,4)+1)&"-"&TEXT(MID(dms_fy8,3,2)+2,"00"),VALUE(LEFT(dms_fy8,4)+1)) -> 2026-27 | D127: 2014 | E127: dms_cy9 | F127: dms_frcp_fy9 | G127: 2018-19 | H127: 2019 | I127: dms_crcp_cy9 | L127: 2031-32 | M127: 2032
B128: dms_y10 | C128: =IF(dms_RPT="financial",VALUE(LEFT(dms_fy9,4)+1)&"-"&TEXT(MID(dms_fy9,3,2)+2,"00"),VALUE(LEFT(dms_fy9,4)+1)) -> 2027-28 | D128: 2015 | E128: dms_cy10 | F128: dms_frcp_fy10 | G128: 2019-20 | H128: 2020 | I128: dms_crcp_cy10 | L128: 2032-33 | M128: 2033
B129: dms_y11 | C129: =IF(dms_RPT="financial",VALUE(LEFT(dms_fy10,4)+1)&"-"&TEXT(MID(dms_fy10,3,2)+2,"00"),VALUE(LEFT(dms_fy10,4)+1)) -> 2028-29 | D129: 2016 | E129: dms_cy11 | F129: dms_frcp_fy11 | G129: 2020-21 | H129: 2021 | I129: dms_crcp_cy11 | L129: 2033-34 | M129: 2034
B130: dms_y12 | C130: =IF(dms_RPT="financial",VALUE(LEFT(dms_fy11,4)+1)&"-"&TEXT(MID(dms_fy11,3,2)+2,"00"),VALUE(LEFT(dms_fy11,4)+1)) -> 2029-30 | D130: 2017 | E130: dms_cy12 | F130: dms_frcp_fy12 | G130: 2021-22 | H130: 2022 | I130: dms_crcp_cy12 | L130: 2034-35 | M130: 2035
B131: dms_y13 | C131: =IF(dms_RPT="financial",VALUE(LEFT(dms_fy12,4)+1)&"-"&TEXT(MID(dms_fy12,3,2)+2,"00"),VALUE(LEFT(dms_fy12,4)+1)) -> 2030-31 | D131: 2018 | E131: dms_cy13 | F131: dms_frcp_fy13 | G131: 2022-23 | H131: 2023 | I131: dms_crcp_cy13 | L131: 2035-36 | M131: 2036
B132: dms_y14 | C132: =IF(dms_RPT="financial",VALUE(LEFT(dms_fy13,4)+1)&"-"&TEXT(MID(dms_fy13,3,2)+2,"00"),VALUE(LEFT(dms_fy13,4)+1)) -> 2031-32 | D132: 2019 | E132: dms_cy14 | F132: dms_frcp_fy14 | G132: 2023-24 | H132: 2024 | I132: dms_crcp_cy14
B133: dms_y15 | C133: =IF(dms_RPT="financial",VALUE(LEFT(dms_fy14,4)+1)&"-"&TEXT(MID(dms_fy14,3,2)+2,"00"),VALUE(LEFT(dms_fy14,4)+1)) -> 2032-33 | D133: 2020 | E133: dms_cy15 | F133: dms_frcp_fy15 | G133: 2024-25 | H133: 2025 | I133: dms_crcp_cy15
B134: dms_y16 | C134: =IF(dms_RPT="financial",VALUE(LEFT(dms_fy15,4)+1)&"-"&TEXT(MID(dms_fy15,3,2)+2,"00"),VALUE(LEFT(dms_fy15,4)+1)) -> 2033-34 | D134: 2021 | E134: dms_cy16
B135: dms_y17 | C135: =IF(dms_RPT="financial",VALUE(LEFT(dms_fy16,4)+1)&"-"&TEXT(MID(dms_fy16,3,2)+2,"00"),VALUE(LEFT(dms_fy16,4)+1)) -> 2034-35 | D135: 2022 | E135: dms_cy17
B136: dms_y18 | C136: =IF(dms_RPT="financial",VALUE(LEFT(dms_fy17,4)+1)&"-"&TEXT(MID(dms_fy17,3,2)+2,"00"),VALUE(LEFT(dms_fy17,4)+1)) -> 2035-36 | D136: 2023 | E136: dms_cy18
B137: dms_y19 | C137: =IF(dms_RPT="financial",VALUE(LEFT(dms_fy18,4)+1)&"-"&TEXT(MID(dms_fy18,3,2)+2,"00"),VALUE(LEFT(dms_fy18,4)+1)) -> 2036-37 | D137: 2024 | E137: dms_cy19
B138: dms_y20 | C138: =IF(dms_RPT="financial",VALUE(LEFT(dms_fy19,4)+1)&"-"&TEXT(MID(dms_fy19,3,2)+2,"00"),VALUE(LEFT(dms_fy19)+1)) -> 2037-38 | D138: 2025 | E138: dms_cy20
B144: These "row descriptions" are the column headings in the various templates but become row descriptions in the ETL process
C145: Table 6.3 sustained interruptions - row descriptions
C146: dms_060301_CustNo_Affected_Row | D146: dms_060301_Avg_Duration_Sustained_Int_Row | E146: dms_060301_Effect_unplanned_SAIDI_Row | F146: dms_060301_Effect_unplanned_SAIFI_Row
C147: Number of customers affected by the interruption | D147: Average duration of sustained customer interruption | E147: Effect on unplanned SAIDI | F147: Effect on unplanned SAIFI
C151: Table 6.1 telephone answering - row descriptions and start date
C152: dms_060101_Rows | D152: dms_060102_Rows | E152: dms_060101_StartDateTxt
C153: Total number of calls (after removing excluded events) | D153: Number of calls answered within 30 seconds (after excluding excluded events) | E153: =dms_060701_StartDateTxt -> 1-Jul-2019
H157: dms_0603_FeederList | I157: =INDEX(dms_FeederName_1,MATCH(dms_TradingName,dms_TradingName_List)) -> CBD | J157: =INDEX(dms_FeederName_2,MATCH(dms_TradingName,dms_TradingName_List)) -> Urban | K157: =INDEX(dms_FeederName_3,MATCH(dms_TradingName,dms_TradingName_List)) -> Short rural | L157: =INDEX(dms_FeederName_4,MATCH(dms_TradingName,dms_TradingName_List)) -> Long rural
C158: Table 6.7.1 - daily performance data - unplanned - MAIFI -- row descriptions and header named range values
C159: These headings (Lists) are determined from the INDEX/MATCH function on the NSP selected on the Business & other details sheet
B160: dms_060701_Feeder_Header_Lvl4 | C160: =INDEX(dms_FeederName_1,MATCH(dms_TradingName,dms_TradingName_List)) -> CBD | D160: =INDEX(dms_FeederName_1,MATCH(dms_TradingName,dms_TradingName_List)) -> CBD | E160: =INDEX(dms_FeederName_2,MATCH(dms_TradingName,dms_TradingName_List)) -> Urban | F160: =INDEX(dms_FeederName_2,MATCH(dms_TradingName,dms_TradingName_List)) -> Urban | G160: =INDEX(dms_FeederName_3,MATCH(dms_TradingName,dms_TradingName_List)) -> Short rural | H160: =INDEX(dms_FeederName_3,MATCH(dms_TradingName,dms_TradingName_List)) -> Short rural | I160: =INDEX(dms_FeederName_4,MATCH(dms_TradingName,dms_TradingName_List)) -> Long rural | J160: =INDEX(dms_FeederName_4,MATCH(dms_TradingName,dms_TradingName_List)) -> Long rural | K160: =IF((INDEX(dms_FeederName_5,MATCH(dms_TradingName,dms_TradingName_List))=0),"Network",(INDEX(dms_FeederName_5,MATCH(dms_TradingName,dms_TradingName_List)))) -> Network | L160: =IF((INDEX(dms_FeederName_5,MATCH(dms_TradingName,dms_TradingName_List))=0),"Network",(INDEX(dms_FeederName_5,MATCH(dms_TradingName,dms_TradingName_List)))) -> Network | M160: Network | N160: Network
B162: dms_060701_Rows | C162: All events | D162: After removing excluded events | E162: All events | F162: After removing excluded events | G162: All events | H162: After removing excluded events | I162: All events | J162: After removing excluded events | K162: All events | L162: After removing excluded events | M162: All events | N162: After removing excluded events
C163: the number of column headings changes from 10 to 12 depending on the number of feeder categories for the NSP
C168: Table 6.8.1 - row descriptions
C169: dms_060801_01_Rows | D169: dms_060801_02_Rows | E169: dms_060801_03_Rows | F169: dms_060801_04_Rows
C170: Number of interruptions | D170: Duration of interruptions | E170: Total unplanned minutes off supply | F170: Effect on unplanned MAIFI
C175: Table 7.9.4 - market impact component - row descriptions
B176: dms_070904_01_Rows | C176: without exclusions | D176: with exclusions
C182: Use this to add to existing files
C183: ARRs 6.7 STPIS daily performance
C184: dms_060101_Values | D184: dms_060102_Values | E184: dms_060701_Values
C186: ARR's 6.8 STPIS exclusions
C187: dms_060801_Event_Date | D187: dms_060801_OutageID | E187: dms_060801_FeederID | F187: dms_060801_FeederClass | G187: dms_060801_CauseID | H187: dms_060801_01_Values | I187: dms_060801_02_Values | J187: dms_060801_03_Values | K187: dms_060801_Excl_Cat | L187: dms_060801_04_Values
C188: dms_060801_StartCell
C190: CA 6.3 sustained interruptions
C191: dms_060301_Event_Date | D191: dms_060301_Event_Time | E191: dms_060301_AssetID | F191: dms_060301_FeederClass | G191: dms_060301_Reason | H191: dms_060301_DetailedReason | I191: dms_060301_CustNo_Affected_Values | J191: dms_060301_Avg_Duration_Sustained_Int_Values | K191: dms_060301_Effect_unplanned_SAIDI_Values | L191: dms_060301_Effect_unplanned_SAIFI_Values | M191: dms_060301_MED

Sheet Cover

Sheet Business & other details
B1: =IF(dms_DataQuality="backcast",INDEX(dms_Worksheet_List,MATCH(dms_Model,dms_Model_List))&" BACKCAST",INDEX(dms_Worksheet_List,MATCH(dms_Model,dms_Model_List))) -> REGULATORY REPORTING STATEMENT
B2: =INDEX(dms_TradingNameFull_List,MATCH(dms_TradingName,dms_TradingName_List)) -> Australian Gas Networks Limited (reporting data for SA)
B3: =IF(SUM(dms_SingleYear_Model)>0,CONCATENATE(CRY),CONCATENATE(FRCP_y1," to ",dms_MultiYear_FinalYear_Result)) -> 2021-22 to 2025-26
B4: BUSINESS & OTHER DETAILS
B7: Instructions
B8: Complete the following business details regulatory template before entering data or values in any other regulatory template. This regulatory template is linked to other cells within the spreadsheet and automatically generates column headings and conditional formatting to distinguish business specific input and non-input cells.
B10: SUBMISSION PARTICULARS INPUT SHEETS
B12: ENTITY DETAILS
B14: Short name | C14: AGN (SA) | F14: Select business name from drop down list first
B15: ACN / ABN | C15: =INDEX(dms_ABN_List,MATCH(dms_TradingName,dms_TradingName_List)) -> 19078551685
B18: Business address | C18: Address 1 | E18: =INDEX(dms_Addr1_List,MATCH(dms_TradingName,dms_TradingName_List)) -> Level 6
D19: Address 2 | E19: =IF(ISBLANK(INDEX(dms_Addr2_List,MATCH(dms_TradingName,dms_TradingName_List))),"",(INDEX(dms_Addr2_List,MATCH(dms_TradingName,dms_TradingName_List)))) -> 400 King William Street
C20: Suburb | E20: =INDEX(dms_Suburb_List,MATCH(dms_TradingName,dms_TradingName_List)) -> ADELAIDE
D21: State | E21: =INDEX(dms_State_List,MATCH(dms_TradingName,dms_TradingName_List)) -> SA | F21: p/code | G21: =INDEX(dms_PostCode_List,MATCH(dms_TradingName,dms_TradingName_List)) -> 5000
B23: Postal address | C23: Address 1 | E23: =INDEX(dms_PAddr1_List,MATCH(dms_TradingName,dms_TradingName_List)) -> PO Box 6468
D24: Address 2 | E24: =IF(ISBLANK(INDEX(dms_PAddr2_List,MATCH(dms_TradingName,dms_TradingName_List))),"",(INDEX(dms_PAddr2_List,MATCH(dms_TradingName,dms_TradingName_List)))) -> Halifax Street
C25: Suburb | E25: =INDEX(dms_PSuburb_List,MATCH(dms_TradingName,dms_TradingName_List)) -> ADELAIDE
D26: State | E26: =INDEX(dms_PState_List,MATCH(dms_TradingName,dms_TradingName_List)) -> SA | F26: p/code | G26: =INDEX(dms_PPostCode_List,MATCH(dms_TradingName,dms_TradingName_List)) -> 5000
B29: Contact name/s
B30: Contact phone/s
B31: Contact email address/s
B33: REGULATORY CONTROL PERIODS
B35: Forthcoming regulatory control period | C35: 2021-22 | D35: =dms_FRCP_y2 -> 2022-23 | E35: =dms_FRCP_y3 -> 2023-24 | F35: =dms_FRCP_y4 -> 2024-25 | G35: =dms_FRCP_y5 -> 2025-26
C36: =dms_FRCP_y6 -> 2026-27 | D36: =dms_FRCP_y7 -> 2027-28 | E36: =dms_FRCP_y8 -> 2028-29 | F36: =dms_FRCP_y9 -> 2029-30 | G36: =dms_FRCP_y10 -> 2030-31
B39: Current regulatory control period | C39: =dms_CRCP_FirstYear_Result -> 2016-17 | D39: =IF(dms_RPT="financial",VALUE(LEFT(CRCP_y1,4)+1)&"-"&TEXT(MID(CRCP_y1,3,2)+2,"00"),VALUE(LEFT(CRCP_y1,4)+1)) -> 2017-18 | E39: =IF(dms_RPT="financial",VALUE(LEFT(CRCP_y1,4)+2)&"-"&TEXT(VALUE(MID(CRCP_y1,3,2)+3),"00"),VALUE(LEFT(CRCP_y1,4)+2)) -> 2018-19 | F39: =IF(dms_RPT="financial",VALUE(LEFT(CRCP_y1,4)+3)&"-"&TEXT(MID(CRCP_y1,3,2)+4,"00"),VALUE(LEFT(CRCP_y1,4)+3)) -> 2019-20 | G39: =IF(dms_RPT="financial",VALUE(LEFT(CRCP_y1,4)+4)&"-"&TEXT(MID(CRCP_y1,3,2)+5,"00"),VALUE(LEFT(CRCP_y1,4)+4)) -> 2020-21
C40: =IF(dms_RPT="financial",VALUE(LEFT(CRCP_y1,4)+5)&"-"&TEXT(MID(CRCP_y1,3,2)+6,"00"),VALUE(LEFT(CRCP_y1,4)+5)) -> 2021-22 | D40: =IF(dms_RPT="financial",VALUE(LEFT(CRCP_y1,4)+6)&"-"&TEXT(MID(CRCP_y1,3,2)+7,"00"),VALUE(LEFT(CRCP_y1,4)+6)) -> 2022-23 | E40: =IF(dms_RPT="financial",VALUE(LEFT(CRCP_y1,4)+7)&"-"&TEXT(MID(CRCP_y1,3,2)+8,"00"),VALUE(LEFT(CRCP_y1,4)+7)) -> 2023-24 | F40: =IF(dms_RPT="financial",VALUE(LEFT(CRCP_y1,4)+8)&"-"&TEXT(MID(CRCP_y1,3,2)+9,"00"),VALUE(LEFT(CRCP_y1,4)+8)) -> 2024-25 | G40: =IF(dms_RPT="financial",VALUE(LEFT(CRCP_y1,4)+9)&"-"&TEXT(MID(CRCP_y1,3,2)+10,"00"),VALUE(LEFT(CRCP_y1,4)+9)) -> 2025-26
C41: =IF(dms_RPT="financial",VALUE(LEFT(CRCP_y1,4)+10)&"-"&TEXT(MID(CRCP_y1,3,2)+11,"00"),VALUE(LEFT(CRCP_y1,4)+10)) -> 2026-27 | D41: =IF(dms_RPT="financial",VALUE(LEFT(CRCP_y1,4)+11)&"-"&TEXT(MID(CRCP_y1,3,2)+12,"00"),VALUE(LEFT(CRCP_y1,4)+11)) -> 2027-28 | E41: =IF(dms_RPT="financial",VALUE(LEFT(CRCP_y1,4)+12)&"-"&TEXT(MID(CRCP_y1,3,2)+13,"00"),VALUE(LEFT(CRCP_y1,4)+12)) -> 2028-29 | F41: =IF(dms_RPT="financial",VALUE(LEFT(CRCP_y1,4)+13)&"-"&TEXT(MID(CRCP_y1,3,2)+14,"00"),VALUE(LEFT(CRCP_y1,4)+13)) -> 2029-30 | G41: =IF(dms_RPT="financial",VALUE(LEFT(CRCP_y1,4)+14)&"-"&TEXT(MID(CRCP_y1,3,2)+15,"00"),VALUE(LEFT(CRCP_y1,4)+14)) -> 2030-31
B44: Previous regulatory control period | C44: =IF(dms_RPT="financial",VALUE(LEFT(PRCP_y2,4)-1)&"-"&TEXT(VALUE(MID(PRCP_y2,3,2)),"00"),VALUE(LEFT(PRCP_y2,4)-1)) -> 2011-12 | D44: =IF(dms_RPT="financial",VALUE(LEFT(PRCP_y3,4)-1)&"-"&TEXT(VALUE(MID(PRCP_y3,3,2)),"00"),VALUE(LEFT(PRCP_y3,4)-1)) -> 2012-13 | E44: =IF(dms_RPT="financial",VALUE(LEFT(PRCP_y4,4)-1)&"-"&TEXT(VALUE(MID(PRCP_y4,3,2)),"00"),VALUE(LEFT(PRCP_y4,4)-1)) -> 2013-14 | F44: =IF(dms_RPT="financial",VALUE(LEFT(PRCP_y5,4)-1)&"-"&TEXT(VALUE(RIGHT(PRCP_y5,2)-1),"00"),VALUE(LEFT(PRCP_y5,4)-1)) -> 2014-15 | G44: =IF(dms_RPT="financial",VALUE(LEFT(CRCP_y1,4)-1)&"-"&TEXT(VALUE(RIGHT(CRCP_y1,2)-1),"00"),VALUE(LEFT(CRCP_y1,4)-1)) -> 2015-16
B48: Commencing regulatory year | C48: 2018-19 | D48: CRY
B50: Last completed regulatory year | C50: 2024-25 | D50: dms_FinalYear
B55: Source | C55: Regulatory proposal | E55: Please select the correct submission type from the dropdown list.
B56: Data quality (actual, estimate, public, consolidated) | C56: Consolidated | E56: Use Consolidated for Consolidated Confidential version Use Public for Consolidated Public version
B57: Amended RIN submission - amendment reason | C57: .
B58: Submission Date | C58: dd/mm/yy | D58: dms_SubmissionDate | E58: Please enter date this file submitted to AER (dd/mm/yyyy)
B59: ECM - First application of scheme in forthcoming period? | C59: No
B60: Sector | C60: =INDEX(dms_Sector_List,MATCH(dms_TradingName,dms_TradingName_List)) -> Gas | D60: dms_Sector | E60: =INDEX(dms_Sector_List,MATCH(dms_TradingName,dms_TradingName_List))
B61: Segment | C61: =INDEX(dms_Segment_List,MATCH(dms_TradingName,dms_TradingName_List)) -> Distribution | D61: dms_Segment | E61: =INDEX(dms_Segment_List,MATCH(dms_TradingName,dms_TradingName_List))
B62: Regulatory Year Ending | C62: =IF(dms_MultiYear_Flag=1,LEFT(dms_Specified_FinalYear,2)&RIGHT(dms_Specified_FinalYear,2),INDEX(dms_RYE_Formula_Result,MATCH(dms_Model,dms_Model_List))) -> 2026 | D62: dms_RYE | E62: =IF(dms_MultiYear_Flag=1,LEFT(dms_Specified_FinalYear,2)&RIGHT(dms_Specified_FinalYear,2),INDEX(dms_RYE_Formula_Result,MATCH(dms_Model,dms_Model_List)))
B63: Reporting Period Type | C63: =INDEX(dms_RPT_List,MATCH(dms_TradingName,dms_TradingName_List)) -> Financial | D63: dms_RPT | E63: =INDEX(dms_RPT_List,MATCH(dms_TradingName,dms_TradingName_List))
B64: Model or RIN Type | C64: Reset | D64: dms_Model | E64: Drop down selection
B65: EB/CA Unit of Measure for Monetary Values | C65: $0s | D65: dms_dollar_nom_UOM | E65: If the cover sheet is attached to an ABC RIN apply the NAMED RANGE to the cell
B66: Security Classification | C66: Public | D66: dms_Classification | E66: Always Public
B67: Jurisdiction | C67: =INDEX(dms_JurisdictionList,MATCH(dms_TradingName,dms_TradingName_List)) -> SA | D67: dms_Jurisdiction | E67: =INDEX(dms_JurisdictionList,MATCH(dms_TradingName,dms_TradingName_List))
B68: FORECAST and MultiYear RINS
B69: CRY-1 (last full calendar year before CRY) | C69: =IF(dms_RPT="financial",VALUE(LEFT(dms_SingleYear_FinalYear_Result,4)),VALUE(LEFT(dms_SingleYear_FinalYear_Result,4)-1)) ->  | D69: dms_Cal_Year_B4_CRY | E69: '=IF(dms_RPT="financial",VALUE(LEFT(dms_SingleYear_FinalYear_Result,4)),VALUE(LEFT(dms_SingleYear_FinalYear_Result,4)-1))
B70: Dollar $ real month | C70: =INDEX(dms_RPTMonth_List,MATCH(dms_TradingName,dms_TradingName_List)) -> June | D70: dms_RPTMonth | E70: =INDEX(dms_RPTMonth_List,MATCH(dms_TradingName,dms_TradingName_List))
B71: Dollar $ real (the last month before the FRCP_y1) | C71: =IF(SUM(dms_SingleYear_Model)>0,CONCATENATE(dms_RPTMonth)&" "&VALUE((LEFT(CRY,2))&RIGHT(CRY,2)),CONCATENATE(dms_RPTMonth)&" "&VALUE((LEFT(dms_CRCP_FinalYear_Result,2)&RIGHT(dms_CRCP_FinalYear_Result,2)))) -> June 2021 | D71: dms_DollarReal | E71: =IF(SUM(dms_SingleYear_Model)>0,CONCATENATE(dms_RPTMonth)&" "&VALUE((LEFT(CRY,2))&RIGHT(CRY,2)),CONCATENATE(dms_RPTMonth)&" "&VALUE((LEFT(dms_CRCP_FinalYear_Result,2)&RIGHT(dms_CRCP_FinalYear_Result,2))))
B72: Dollar $ real previous year (PRCP_y5) | C72: =IF(SUM(dms_SingleYear_Model)>0,CONCATENATE(dms_RPTMonth)&" "&VALUE(((LEFT(CRY,2))&RIGHT(CRY,2))-1),CONCATENATE(dms_RPTMonth)&" "&VALUE(((LEFT(dms_CRCP_FirstYear_Result,2)&RIGHT(dms_CRCP_FirstYear_Result,2))))-1) -> June 2016 | D72: dms_DollarReal_Prev | E72: =IF(SUM(dms_SingleYear_Model)>0,CONCATENATE(dms_RPTMonth)&" "&VALUE(((LEFT(CRY,2))&RIGHT(CRY,2))-1),CONCATENATE(dms_RPTMonth)&" "&VALUE(((LEFT(dms_CRCP_FirstYear_Result,2)&RIGHT(dms_CRCP_FirstYear_Result,2))))-1)
B73: This block works out the various RYE's for ALL RIN types and MODELS
B74: Single Year Model T/F | C74: =IF(dms_Model="EB",1,0) -> 0 | D74: dms_EB
C75: =IF(dms_Model="CA",1,0) -> 0 | D75: dms_CA | E75: =dms_SingleYear_Model
C76: =IF(dms_Model="ARR",1,0) -> 0 | D76: dms_ARR
B77: Is this a single Year RIN? | C77: =IF(SUM(dms_SingleYear_Model)=1,"yes","no") -> no | E77: =IF(SUM(dms_SingleYear_Model)=1,"yes","no")
B78: Single Year Final Year Reference | C78: CRY | D78: dms_SingleYear_FinalYear_Ref | E78: This is the reference for EB, CA & ARR RINs
B79: Single Year Final Year Result | C79: =IFERROR(IF(SUM(dms_SingleYear_Model)<>0,(INDIRECT(dms_SingleYear_FinalYear_Ref)),"not a single year RIN"),"CRY not present") -> not a single year RIN | D79: dms_SingleYear_FinalYear_Result | E79: =IFERROR(IF(SUM(dms_SingleYear_Model)<>0,(INDIRECT(dms_SingleYear_FinalYear_Ref)),"not a single year RIN"),"CRY not present")
B80: FRCP length in years | C80: =INDEX(dms_FRCPlength_List,MATCH(dms_TradingName,dms_TradingName_List)) -> 5 | D80: dms_FRCPlength_Num | E80: =INDEX(dms_FRCPlength_List,MATCH(dms_TradingName,dms_TradingName_List))
B81: Multi Year Final Year Reference | C81: =INDEX(dms_FinalYear_List,MATCH(dms_FRCPlength_Num,dms_FRCPlength_Num_List)) -> dms_FRCP_y5 | D81: dms_MultiYear_FinalYear_Ref | E81: =INDEX(dms_FinalYear_List,MATCH(dms_FRCPlength_Num,dms_FRCPlength_Num_List))
B82: Multi Year Final Year Result | C82: =IF(dms_MultiYear_Flag=0,INDIRECT(dms_MultiYear_FinalYear_Ref),dms_Specified_FinalYear) -> 2025-26 | D82: dms_MultiYear_FinalYear_Result | E82: =IF(dms_MultiYear_Flag=0,INDIRECT(dms_MultiYear_FinalYear_Ref),dms_Specified_FinalYear) | I82: Formula errors OK
B83: CRCP length in years | C83: =INDEX(dms_CRCPlength_List,MATCH(dms_TradingName,dms_TradingName_List)) -> 5 | D83: dms_CRCPlength_Num | E83: =INDEX(dms_CRCPlength_List,MATCH(dms_TradingName,dms_TradingName_List))
B84: CRCP Final Year Reference | C84: =INDEX(dms_CFinalYear_List,MATCH(dms_CRCPlength_Num,dms_CRCPlength_Num_List)) -> CRCP_y5 | D84: dms_CRCP_FinalYear_Ref | E84: =INDEX(dms_CFinalYear_List,MATCH(dms_CRCPlength_Num,dms_CRCPlength_Num_List))
B85: CRCP First Year Result | C85: =INDEX(dms_CRCP_years,MATCH(dms_CRCPlength_Num,dms_CRCP_index)) -> 2016-17 | D85: dms_CRCP_FirstYear_Result | E85: =INDEX(dms_CRCP_years,MATCH(dms_CRCPlength_Num,dms_CRCP_index))
B86: CRCP Final Year Result | C86: =IF(dms_MultiYear_Flag=0,(IF(SUM(dms_SingleYear_Model)>0,CRY,dms_CRCP_yZ)),dms_Specified_FinalYear) -> 2020-21 | D86: dms_CRCP_FinalYear_Result | E86: =IF(dms_MultiYear_Flag=0,(IF(SUM(dms_SingleYear_Model)>0,CRY,dms_CRCP_yZ)),dms_Specified_FinalYear)
B87: PTRM/ RFMs
B88: Form of control | C88: =INDEX(dms_FormControl_List,MATCH(dms_TradingName,dms_TradingName_List)) -> Weighted average price cap | D88: dms_FormControl | E88: =INDEX(dms_FormControl_List,MATCH(dms_TradingName,dms_TradingName_List))
B89: ABC RINS THAT SPAN MULTIPLE YEARS
B90: Is this a multi year ABC RIN? | C90: No
B91: Multiyear EB, CA or ARR? | C91: =IF(dms_MultiYear_ResponseFlag="No",0,1) -> 0 | D91: dms_MultiYear_Flag | E91: This is set from the answer provided above
C92: =IF(dms_MultiYear_Flag=1,FRY,"not a Multiple year submission") -> not a Multiple year submission | D92: dms_Specified_FinalYear | E92: The result here is returned to dms_CRCP_FinalYear_Result if response to Q in C73 is "yes" and dms_MultiYear_Flag is set to 1
B93: Start year for 5.2 in Multi year RINS | C93: =IF(dms_MultiYear_Flag=1,FRY,CRY) -> 2018-19 | D93: dms_0502_Inst_Year | E93: =IF(dms_MultiYear_Flag=1,FRY,CRY) | G93: For single year RINS this is CRY - multi year RINS need to start a the end of the span of years (ie. FRY)
B94: EB RINS
B95: Calendar Year for table 3.6 data | C95: =IF(dms_RPT="financial",VALUE(LEFT(dms_SingleYear_FinalYear_Result,4)),VALUE(LEFT(dms_SingleYear_FinalYear_Result,4)-1)) ->  | D95: dms_0306_Year | E95: =IF(dms_RPT="financial",VALUE(LEFT(dms_SingleYear_FinalYear_Result,4)),VALUE(LEFT(dms_SingleYear_FinalYear_Result,4)-1))
B96: CA RINS
B97: Find how many rows in tables 6.3 sustained interruptions? | E97: dms_060301_MaxRows only returns a valid value when cover sheet is attached to a CA file
C98: =IF(dms_Model<>"CA","not a CA","Is a CA") -> not a CA | E98: =IF(dms_Model<>"CA","not a CA","Is a CA")
B99: dms_060301_Avg_Duration_Sustained_Int_Values present? | C99: =IFERROR(IF(INDEX(dms_060301_Avg_Duration_Sustained_Int_Values,1,1)<>"","yes","no"),"no") -> no | D99: dms_060301_checkvalue | E99: =IFERROR(IF(INDEX(dms_060301_Avg_Duration_Sustained_Int_Values,1,1)<>"","yes","no"),"no")
C100: =IF(AND(dms_Model="CA",(dms_060301_checkvalue="no")),"error - NR not present","no errors") -> no errors | E100: =IF(AND(dms_Model="CA",(dms_060301_checkvalue="no")),"error - NR not present","no errors")
B101: Table 6.3.1 - last row reference | C101: =IFERROR(IF(dms_Model="CA",LOOKUP(2,1/(dms_060301_Avg_Duration_Sustained_Int_Values<>""),(ROW(dms_060301_Avg_Duration_Sustained_Int_Values))),"not a CA"),"6.3 not present") -> not a CA | D101: dms_060301_LastRow | E101: =IFERROR(IF(dms_Model="CA",LOOKUP(2,1/(dms_060301_Avg_Duration_Sustained_Int_Values<>""),(ROW(dms_060301_Avg_Duration_Sustained_Int_Values))),"not a CA"),"6.3 not present")
B102: Table 6.3.1 - max number rows | C102: =IFERROR(IF(dms_Model="CA",(dms_060301_LastRow-15),"not a CA"),"error") -> not a CA | D102: dms_060301_MaxRows | E102: =IFERROR(IF(dms_Model="CA",(dms_060301_LastRow-15),"not a CA"),"error")
B103: Table 6.6.3 - Public lighting repair - no. business days | C103: =INDEX(dms_663_List,MATCH(dms_TradingName,dms_TradingName_List)) -> 5 | D103: dms_663 | E103: =INDEX(dms_663_List,MATCH(dms_TradingName,dms_TradingName_List))
B104: ARR or RESET RINS
B105: How many rows in tables 6.1 or 6.7? (leap year?) | C105: insert dms_LeapYear NR if required | E105: 'dms_LeapYear is used to determine dms_060701_Max_Rows BUT it is only found on worksheet 6.1 or 6.7 and the date value in the cell is used to determine whether it is a leap year
B106: Is dms_LeapYear named range present? | C106: =IFERROR(IF(dms_LeapYear,"yes"),"no") -> no
B107: Table 6.7.1 - includes a leap year? | C107: =IFERROR(IF(MONTH(DATE(YEAR(dms_LeapYear),2,29))=2,"is a leap year","not a leap year"), "dms_LeapYear not present") -> dms_LeapYear not present | D107: dms_LeapYear_Result | E107: =IFERROR(IF(MONTH(DATE(YEAR(dms_LeapYear),2,29))=2,"is a leap year","not a leap year"),"dms_LeapYear not present")
B108: MaxRows if Reset and leap year | C108: =IF(dms_LeapYear_Result="is a leap year",1827,1826) -> 1826 | D108: dms_060701_Reset_MaxRows | E108: =IF(dms_LeapYear_Result="is a leap year",1827,1826) | H108: number of days present in Reset RIN table
B109: MaxRows if ARR and leap year | C109: =IF(dms_LeapYear_Result="is a leap year",366,365) -> 365 | D109: dms_060701_ARR_MaxRows | E109: =IF(dms_LeapYear_Result="is a leap year",366,365) | H109: number of days present in ARR RIN table
B110: Table 6.7.1 - Max Rows (leap year/ non leap year) | C110: =IF(dms_Model="ARR",dms_060701_ARR_MaxRows,IF(dms_Model="Reset",dms_060701_Reset_MaxRows,"not a relevant RIN type")) -> 1826 | D110: dms_060701_MaxRows | E110: =IF(dms_Model="ARR",dms_060701_ARR_MaxRows,IF(dms_Model="Reset",dms_060701_Reset_MaxRows,"not a relevant RIN type"))
B111: How many columns in 6.7? (4 or 5 feeder categories) | C111: =IF(dms_FifthFeeder_flag_NSP="NO","This NSP has only 4 feeder categories","This NSP has 5 feeder categories") -> This NSP has only 4 feeder categories
B112: Table 6.7.1 - Last column (# of feeder categories > 4) | C112: =IF(dms_FifthFeeder_flag_NSP="NO",10,12) -> 10 | D112: dms_060701_MaxCols | E112: =IF(dms_FifthFeeder_flag_NSP="NO",8,10)
B113: Table 6.7.1 - Number of offset rows | C113: =IF(dms_Model="ARR",15,9) -> 9 | D113: dms_060701_OffsetRows | E113: =IF(dms_Model="ARR",15,9)
B114: Start date for telephone answering in 6.1 or 6.7? | E114: Using 060101 as naming standard not 060701 for start dates
B115: Table 6.1.1 and 6.7.1 - Start Date as Text | C115: =IF(SUM(dms_SingleYear_Model)>0,(CONCATENATE(IF(LEN(CRY)=4,"1-Jan-","1-Jul-"),LEFT(CRY,4))),(CONCATENATE(IF(LEN(CRCP_y4)=4,"1-Jan-","1-Jul-"),LEFT(CRCP_y4,4)))) -> 1-Jul-2019 | D115: dms_060101_StartDateTxt | E115: =IF(SUM(dms_SingleYear_Model)>1,(CONCATENATE(IF(LEN(CRY)=4,"1-Jan-","1-Jul-"),LEFT(CRY,4))),(CONCATENATE(IF(LEN(CRCP_y4)=4,"1-Jan-","1-Jul-"),LEFT(CRCP_y4,4))))
B116: Table 6.1.1 and 6.7.1 - Start Date as Date Value | C116: =DATEVALUE(dms_060701_StartDateTxt) -> 43647 | D116: dms_060101_StartDateVal | E116: =DATEVALUE(dms_060701_StartDateTxt)
B117: ARRs
B118: How many rows in table 6.8? | C118: insert dms_060801_StartCell NR if required | E118: dms_060801_StartCell is only found on worksheet 6.8 and is used to determine the starting date for the date range
B119: Is dms_060801_StartCell named range present? | C119: yes | E119: =IFERROR(IF((ROW(dms_060801_StartCell)-1)=1,"yes","yes"),"no")
B120: Table 6.8 - Number of offset rows | C120: 12 | D120: dms_0608_OffsetRows | E120: =IFERROR(IF(dms_Model="ARR",(ROW(dms_060801_StartCell)-1),"not an ARR"),"6.8 error")
B121: Table 6.8 - Last row | C121: 6.8 not present | D121: dms_0608_LastRow | E121: =IFERROR(IF(dms_060801_StartCell<>"",IF(dms_Model="ARR",(LOOKUP(2,1/(dms_060801_01_Values<>""),(ROW(dms_060801_01_Values)))),"not an ARR"),0),"6.8 not present")
B122: Table 6.8 - MaxRows | C122: =IFERROR(IF(dms_Model="ARR",(MAX(0,dms_0608_LastRow-dms_0608_OffsetRows)),"not an ARR"),"6.8 not present") -> not an ARR | D122: dms_060801_MaxRows | E122: =IFERROR(IF(dms_Model="ARR",(MAX(0,dms_0608_LastRow-dms_0608_OffsetRows)),"not an ARR"),"6.8 not present")
B123: TNSP RESET RINS
B124: Table 7.9.4 only appears in TNSPs Reset RIN
B125: Table 7.9.4 - first year | C125: =LEFT(PRCP_y3,4) -> 2013 | D125: dms_070904_Start_Year | E125: =LEFT(PRCP_y3,4)
B126: SUBSET FILES
B127: Is this Submission File a Subset File | C127: NO | D127: dms_Partial
B128: MISC
B129: Distribution Determination Reference | C129: =INDEX(dms_DeterminationRef_List,MATCH(dms_TradingName,dms_TradingName_List)) -> distribution determination | D129: dms_DeterminationRef
B130: Public lighting NSP? | C130: =INDEX(dms_Public_Lighting_List,MATCH(dms_TradingName,dms_TradingName_List)) -> NO | D130: dms_Public_Lighting | E130: =INDEX(dms_Public_Lighting_List,MATCH(dms_TradingName,dms_TradingName_List))
B131: CBD Feeder for this business | C131: =INDEX(dms_CBD_flag,MATCH(dms_TradingName,dms_TradingName_List)) -> NO | D131: dms_CBD_flag_NSP
B132: Urban Feeder for this business | C132: =INDEX(dms_Urban_flag,MATCH(dms_TradingName,dms_TradingName_List)) -> NO | D132: dms_Urban_flag_NSP
B133: Short rural Feeder for this business | C133: =INDEX(dms_ShortRural_flag,MATCH(dms_TradingName,dms_TradingName_List)) -> NO | D133: dms_ShortRural_flag_NSP
B134: Long rural Feeder for this business | C134: =INDEX(dms_LongRural_flag,MATCH(dms_TradingName,dms_TradingName_List)) -> NO | D134: dms_LongRural_flag_NSP
B135: Fifth Feeder Category (eg. TasNetworks (D)) | C135: =INDEX(dms_FeederType_5_flag,MATCH(dms_TradingName,dms_TradingName_List)) -> NO | D135: dms_FifthFeeder_flag_NSP | E135: =INDEX(dms_FeederType_5_flag,MATCH(dms_TradingName,dms_TradingName_List))
B137: DISCARD FILES
B138: discard this record? | C138: NO | D138: dms_DISCARD | E138: If record is to be discarded from DB set this flag to YES
B140: USES NAMED RANGES FLAG | C140: yes | D140: dms_Defined_Names_Used
B142: REGULATORY YEARS FOR MULTI RYE SUBMISSIONS
B143: Multiple RYE flag | C143: NO | D143: dms_Multi_RYE_flag
C144: Manually specify RYE | D144: Named ranges to apply
C145: 2013 | D145: dms_RYE_01
C146: 2014 | D146: dms_RYE_02
C147: 2015 | D147: dms_RYE_03
C148: 2016 | D148: dms_RYE_04
C149: 2017 | D149: dms_RYE_05
C150: 2018 | D150: dms_RYE_06
C151: 2019 | D151: dms_RYE_07
C152: 2020 | D152: dms_RYE_08
C153: 2021 | D153: dms_RYE_09

Sheet ECM
B1: REGULATORY REPORTING STATEMENT
B2: =dms_TradingName -> AGN (SA)
B3: =dms_Reg_Year_Span -> 2021-22 to 2025-26
B4: EFFICIENCY CARRYOVER MECHANISM
B6: Intstructions
B7: =CONCATENATE(dms_TradingName, " is required to populate all input cells (yellow) in this worksheet.") -> AGN (SA) is required to populate all input cells (yellow) in this worksheet.
B8: Efficiency gains are calculated using the formulae below. Adjusted target and actual amounts are used to calculate the carry over amounts. We will calculate the efficiency gain in first year (n) as follows: En = (Fn – An) – (Fn-1 – An-1) + (Fb – Ab) where Fn is the forecast opex we approved for the first year, and An is the actual opex incurred in the first year, and so on. The formula references the base year used to forecast opex. Actual opex in the final year of the current regulatory period should be set so that any incremental efficiency gains made after the base year sum to zero.
B12: Actual and estimated inflation
C13: Actual | M13: Estimated
C14: =IF(dms_RPT="financial",VALUE(LEFT(D14,4)-1)&"-"&TEXT(VALUE(MID(D14,3,2)),"0#"),VALUE(LEFT(D14,4)+1)) -> 2009-10 | D14: =IF(dms_RPT="financial",VALUE(LEFT(E14,4)-1)&"-"&TEXT(VALUE(MID(E14,3,2)),"0#"),VALUE(LEFT(E14,4)+1)) -> 2010-11 | E14: =PRCP_y1 -> 2011-12 | F14: =PRCP_y2 -> 2012-13 | G14: =PRCP_y3 -> 2013-14 | H14: =PRCP_y4 -> 2014-15 | I14: =PRCP_y5 -> 2015-16 | J14: =CRCP_y1 -> 2016-17 | K14: =CRCP_y2 -> 2017-18 | L14: =CRCP_y3 -> 2018-19 | M14: =CRCP_y4 -> 2019-20 | N14: =CRCP_y5 -> 2020-21
B15: ABS CPI index - June (rebased) | D15: 99.2 | E15: 100.4 | F15: 102.8 | G15: 105.9 | H15: 107.5 | I15: 108.6 | J15: 110.7 | K15: 113 | L15: 114.8 | M15: 114.4 | N15: =M15*1.0225 -> 116.974
B16: Inflation rate (per cent) | E16: =+E15/D15-1 -> 0.01209677419 | F16: 0.02390438247 | G16: 0.03015564202 | H16: 0.01510859301 | I16: 0.01023255814 | J16: 0.01933701657 | K16: 0.02077687444 | L16: 0.01592920354 | M16: -0.003484320557 | N16: 0.0225
B17: =CONCATENATE("Reconstructed cumulative index (",CRCP_y5,"=1)") -> Reconstructed cumulative index (2020-21=1) | D17: =E17/(1+E16) -> 0.8480517038 | E17: =F17/(1+F16) -> 0.8583103938 | F17: 0.8788277737 | G17: 0.9053293894 | H17: 0.9190076427 | I17: 0.9284114419 | J17: 0.9463641493 | K17: 0.9660266384 | L17: 0.9814146733 | M17: 0.97799511 | N17: 1
B21: 7.5.1 - The carryover amounts that arise from applying the ECM during the current regulatory control period
B23: Base year for the previous period (drop down menu) | C23: 2014-15
B24: 7.5.1.1 - Opex allowance applicable to ECM (ECM target)
C25: =CONCATENATE("$m, real ",dms_RPTMonth," ",(LEFT(PRCP_y1,2)&RIGHT(PRCP_y1,2))-1) -> $m, real June 2011 | H25: =CONCATENATE("$m, real ",dms_RPTMonth," ",(LEFT(PRCP_y5,2)&RIGHT(PRCP_y5,2))) -> $m, real June 2016 | N25: =CONCATENATE("$m, real ", dms_DollarReal) -> $m, real June 2021
C26: Previous period | H26: Current regulatory control period | N26: Previous period | P26: Current regulatory control period
C27: =PRCP_y1 -> 2011-12 | D27: =PRCP_y2 -> 2012-13 | E27: =PRCP_y3 -> 2013-14 | F27: =PRCP_y4 -> 2014-15 | G27: =PRCP_y5 -> 2015-16 | H27: =CRCP_y1 -> 2016-17 | I27: =CRCP_y2 -> 2017-18 | J27: =CRCP_y3 -> 2018-19 | K27: =CRCP_y4 -> 2019-20 | L27: =CRCP_y5 -> 2020-21 | N27: =dms_PRCP_BaseYear -> 2014-15 | O27: =PRCP_y5 -> 2015-16 | P27: =CRCP_y1 -> 2016-17 | Q27: =CRCP_y2 -> 2017-18 | R27: =CRCP_y3 -> 2018-19 | S27: =CRCP_y4 -> 2019-20 | T27: =CRCP_y5 -> 2020-21
B28: Total opex allowance (inc DRC inc UAFG) | F28: 66 | G28: 63.6 | H28: 71.43258767 | I28: 72.84886946 | J28: 74.29209381 | K28: 74.37949266 | L28: 74.58147438 | N28: =+LOOKUP(dms_PRCP_BaseYear,C$27:G$27,C28:G28)/$D$17 -> 77.82544355 | O28: =+G28/$D$17 -> 74.99542742 | P28: =+H28/$I$17 -> 76.94065847 | Q28: =+I28/$I$17 -> 78.46614785 | R28: =+J28/$I$17 -> 80.02065729 | S28: =+K28/$I$17 -> 80.11479535 | T28: =+L28/$I$17 -> 80.33235161
B29: Approved excludable costs - allowance
B30: Debt raising costs | F30: -0.7 | G30: -0.7 | H30: -0.7155773052 | I30: -0.7521993461 | J30: -0.7850146382 | K30: -0.8174652716 | L30: -0.8490789706 | N30: =+LOOKUP(dms_PRCP_BaseYear,C$27:G$27,C30:G30)/$D$17 -> -0.825421371 | O30: -0.825421371 | P30: =H30/$I$17 -> -0.7707545092 | Q30: =I30/$I$17 -> -0.8102004264 | R30: -0.8455460616 | S30: -0.8804989197 | T30: -0.9145503085
B31: Any cost category that is not forecast using a single year revealed cost approach for the 2021-26 access arrangement period (clause 5.1(h)(i)) | F31: -9 | G31: -7.3 | H31: -12.74334521 | I31: -12.79149746 | J31: -12.73650474 | K31: -12.332675 | L31: -11.79626816 | N31: -10.61256048 | O31: -8.607965726 | P31: =H31/$I$17 -> -13.72596742 | Q31: -13.77783263 | R31: -13.7185995 | S31: -13.28363099 | T31: -12.70586254
N32: 0 | O32: 0 | P32: 0 | Q32: 0 | R32: 0 | S32: 0 | T32: =L32/$I$17 -> 0
N33: 0 | O33: 0 | P33: 0 | Q33: 0 | R33: 0 | S33: 0 | T33: 0
B34: Approved pass through event costs (clause 5.1(i)) | N34: 0 | O34: 0 | P34: 0 | Q34: 0 | R34: 0 | S34: 0 | T34: 0
B35: Capitalisation policy changes (clause 5.1(j)) | N35: 0 | O35: 0 | P35: 0 | Q35: 0 | R35: 0 | S35: 0 | T35: 0
B36: Forecast opex for ECM purposes | C36: =SUM(C28:C35) -> 0 | D36: 0 | E36: 0 | F36: 56.3 | G36: 55.6 | H36: 57.97366516 | I36: 59.30517266 | J36: 60.77057444 | K36: 61.22935239 | L36: 61.93612725 | N36: =+SUM(N28:N35) -> 66.38746169 | O36: =+SUM(O28:O35) -> 65.56204032 | P36: =+SUM(P28:P35) -> 62.44393654 | Q36: =+SUM(Q28:Q35) -> 63.87811479 | R36: =+SUM(R28:R35) -> 65.45651173 | S36: 65.95066544 | T36: 66.71193875
B38: 7.5.1.2 - Actual and estimated opex applicable to ECM
C39: $m, Actual | N39: =CONCATENATE("$m, real ", dms_DollarReal) -> $m, real June 2021
C40: Previous period | H40: Current regulatory control period | N40: Previous period | P40: Current regulatory control period
C41: =PRCP_y1 -> 2011-12 | D41: =PRCP_y2 -> 2012-13 | E41: =PRCP_y3 -> 2013-14 | F41: =PRCP_y4 -> 2014-15 | G41: =PRCP_y5 -> 2015-16 | H41: =CRCP_y1 -> 2016-17 | I41: =CRCP_y2 -> 2017-18 | J41: =CRCP_y3 -> 2018-19 | K41: =CRCP_y4 -> 2019-20 | L41: =CRCP_y5 -> 2020-21 | N41: =dms_PRCP_BaseYear -> 2014-15 | O41: =PRCP_y5 -> 2015-16 | P41: =CRCP_y1 -> 2016-17 | Q41: =CRCP_y2 -> 2017-18 | R41: =CRCP_y3 -> 2018-19 | S41: =CRCP_y4 -> 2019-20 | T41: =CRCP_y5 -> 2020-21
B42: Total opex (inc DRC inc UAFG) | F42: =[4]ECM!F42 -> 68.351761 | G42: =[4]ECM!G42 -> 64.456598 | H42: =[4]ECM!H42 -> 60.98097 | I42: =[4]ECM!I42 -> 66.304675 | J42: =[4]ECM!J42 -> 62.095097 | K42: =[4]ECM!K42 -> 62.475182 | N42: =+LOOKUP(dms_PRCP_BaseYear,C$41:G$41,C42:G42)/LOOKUP(dms_PRCP_BaseYear,C$14:N$14,C$17:N$17)*(1+LOOKUP(dms_PRCP_BaseYear,C$14:N$14,C$16:N$16))^0.5 -> 74.93536673 | O42: =+G42/I$17*(1+I$16)^0.5 -> 69.78106225 | P42: =+H42/J$17*(1+J$16)^0.5 -> 65.05713687 | Q42: =+I42/K$17*(1+K$16)^0.5 -> 69.34584741 | R42: =+J42/L$17*(1+L$16)^0.5 -> 63.7729468 | S42: =+K42/M$17*(1+M$16)^0.5 -> 63.76948576
B43: Approved excludable costs
B44: =B30 -> Debt raising costs | F44: =[4]ECM!F44 -> -0.760436 | G44: =[4]ECM!G44 -> -1.27428 | H44: =[4]ECM!H44 -> -0.942006 | I44: =[4]ECM!I44 -> -0.994042 | J44: =[4]ECM!J44 -> -1.052524 | K44: =[4]ECM!K44 -> -0.956032 | N44: =+LOOKUP(dms_PRCP_BaseYear,C$41:G$41,C44:G44)/LOOKUP(dms_PRCP_BaseYear,C$14:N$14,C$17:N$17)*(1+LOOKUP(dms_PRCP_BaseYear,C$14:N$14,C$16:N$16))^0.5 -> -0.8336807963 | O44: =G44/I$17*(1+I$16)^0.5 -> -1.379542433 | P44: -1.004972753 | Q44: -1.039635363 | R44: -1.080963881 | S44: -0.9758381978
B45: =B31 -> Any cost category that is not forecast using a single year revealed cost approach for the 2021-26 access arrangement period (clause 5.1(h)(i)) | F45: =[4]ECM!F45 -> -8.892493 | G45: =[4]ECM!G45 -> -7.742795 | H45: =[4]ECM!H45 -> -8.753689 | I45: =[4]ECM!I45 -> -7.861107 | J45: =[4]ECM!J45 -> -7.983183 | K45: =[4]ECM!K45 -> -4.269725 | N45: -9.749013257 | O45: -8.38239182 | P45: -9.338814115 | Q45: -8.221669535 | R45: -8.198893783 | S45: -4.358181263
N46: 0 | O46: 0 | P46: 0 | Q46: 0 | R46: 0 | S46: 0 | V46: =CONCATENATE(dms_TradingName," to nominate base year used to forecast opex (drop down menu)") -> AGN (SA) to nominate base year used to forecast opex (drop down menu)
N47: 0 | O47: 0 | P47: 0 | Q47: 0 | R47: 0 | S47: 0
B48: Movements in provisions related to opex | F48: =[4]ECM!F48 -> 0.03767237142 | G48: =[4]ECM!G48 -> 0.04687384492 | H48: =[4]ECM!H48 -> -0.05415741499 | I48: =[4]ECM!I48 -> -0.05646358153 | J48: =[4]ECM!J48 -> -0.1021082654 | K48: =[4]ECM!K48 -> -0.3515047341 | N48: 0.04130095446 | O48: 0.05074587849 | P48: -0.05777747319 | Q48: -0.05905337609 | R48: -0.104867297 | S48: -0.3587868881
N49: 0 | O49: 0 | P49: 0 | Q49: =I49/K$17*(1+K$16)^0.5 -> 0 | R49: 0 | S49: 0
B50: Actual opex for ECM purposes | C50: =SUM(C42:C49) -> 0 | D50: 0 | E50: 0 | F50: 58.73650437 | G50: 55.48639684 | H50: =SUM(H42:H49) -> 51.23111759 | I50: =SUM(I42:I49) -> 57.39306242 | J50: =SUM(J42:J49) -> 52.95728173 | K50: =SUM(K42:K49) -> 56.89792027 | L50: 0 | N50: =N42+SUM(N44:N49) -> 64.39397363 | O50: =O42+SUM(O44:O49) -> 60.06987387 | P50: =P42+SUM(P44:P49) -> 54.65557253 | Q50: =Q42+SUM(Q44:Q49) -> 60.02548913 | R50: 54.38822184 | S50: =S42+SUM(S44:S49) -> 58.07667941 | T50: =(T36-(LOOKUP(U50,P27:T27,P36:T36)-LOOKUP(U50,P41:T41,P50:T50)))+U51 -> 58.83795273 | U50: 2019-20
V51: Base year non-recurrent efficiency gain ($m)
N54: =CONCATENATE("Incremental gain $m, real ", dms_DollarReal) -> Incremental gain $m, real June 2021
P55: =(P36-P50)-(O36-O50)+IF(N27=O27,O36-O50,N36-N50) -> 4.28968562 | Q55: =(Q36-Q50)-(P36-P50) -> -3.935738354 | R55: =(R36-R50)-(Q36-Q50) -> 7.215664234 | S55: =(S36-S50)-(R36-R50) -> -3.194303865 | T55: =(T36-T50)-(S36-S50) -> 0
N57: Carryover
P58: Current regulatory control period | U58: Forthcoming regulatory control period
P59: =CONCATENATE("$m, real ", dms_DollarReal) -> $m, real June 2021
P60: =CRCP_y1 -> 2016-17 | Q60: =CRCP_y2 -> 2017-18 | R60: =CRCP_y3 -> 2018-19 | S60: =CRCP_y4 -> 2019-20 | T60: =CRCP_y5 -> 2020-21 | U60: =FRCP_y1 -> 2021-22 | V60: =FRCP_y2 -> 2022-23 | W60: =FRCP_y3 -> 2023-24 | X60: =FRCP_y4 -> 2024-25 | Y60: =FRCP_y5 -> 2025-26 | Z60: Total
N61: =CRCP_y1 -> 2016-17 | Q61: =$P$55 -> 4.28968562 | R61: =$P$55 -> 4.28968562 | S61: =$P$55 -> 4.28968562 | T61: =$P$55 -> 4.28968562 | U61: =$P$55 -> 4.28968562
N62: =CRCP_y2 -> 2017-18 | R62: =$Q$55 -> -3.935738354 | S62: =$Q$55 -> -3.935738354 | T62: =$Q$55 -> -3.935738354 | U62: =$Q$55 -> -3.935738354 | V62: =$Q$55 -> -3.935738354
N63: =CRCP_y3 -> 2018-19 | S63: =$R$55 -> 7.215664234 | T63: =$R$55 -> 7.215664234 | U63: =$R$55 -> 7.215664234 | V63: =$R$55 -> 7.215664234 | W63: =$R$55 -> 7.215664234
N64: =CRCP_y4 -> 2019-20 | T64: =$S$55 -> -3.194303865 | U64: =$S$55 -> -3.194303865 | V64: =$S$55 -> -3.194303865 | W64: =$S$55 -> -3.194303865 | X64: =$S$55 -> -3.194303865
N65: =CRCP_y5 -> 2020-21 | U65: =+$T$55 -> 0 | V65: =+$T$55 -> 0 | W65: =+$T$55 -> 0 | X65: =+$T$55 -> 0 | Y65: =+$T$55 -> 0
N66: =CONCATENATE("Total Carryover Amount ($m, ",dms_DollarReal,")") -> Total Carryover Amount ($m, June 2021) | U66: =+SUM(U61:U65) -> 4.375307635 | V66: =+SUM(V62:V65) -> 0.0856220151 | W66: =+SUM(W63:W65) -> 4.021360369 | X66: =+SUM(X64:X65) -> -3.194303865 | Y66: =+SUM(Y65) -> 0 | Z66: =+SUM(U66:Y66) -> 5.287986155
N68: =CONCATENATE("PTRM inputs ($m, ",dms_DollarReal,")") -> PTRM inputs ($m, June 2021) | U68: =U66 -> 4.375307635 | V68: =V66 -> 0.0856220151 | W68: =W66 -> 4.021360369 | X68: =X66 -> -3.194303865 | Y68: =Y66 -> 0 | Z68: =+SUM(U68:Y68) -> 5.287986155
B70: 7.5.2 - Proposed forecast opex for the ECM for the forthcoming regulatory control period
C71: Forthcoming regulatory control period
C72: =CONCATENATE("$m, real ", dms_DollarReal) -> $m, real June 2021
C73: =FRCP_y1 -> 2021-22 | D73: =FRCP_y2 -> 2022-23 | E73: =FRCP_y3 -> 2023-24 | F73: =FRCP_y4 -> 2024-25 | G73: =FRCP_y5 -> 2025-26
B74: Forecast opex | C74: 70.05109004 | D74: 70.59351205 | E74: 71.0732715 | F74: 71.6458323 | G74: 72.33177227 | H74: =+SUM(C74:G74) -> 355.6954782
B75: Less excluded costs
B76: UAFG | C76: 8.08452 | D76: 8.08452 | E76: 8.08452 | F76: 8.08452 | G76: 8.08452 | H76: =+SUM(C76:G76) -> 40.4226
B77: DRC | C77: 0.8598969104 | D77: 0.8669521746 | E77: 0.876502836 | F77: 0.8858067746 | G77: 0.8957576078 | H77: =+SUM(C77:G77) -> 4.384916303
B78: VCAP | C78: 0.9202058326 | D78: 0.7392664835 | E78: 0.7392664835 | F78: 0.7392664835 | G78: 0.7392664835 | H78: 3.877271767
H79: 0
B80: =CONCATENATE("Adjusted forecast opex ($m, ",CRCP_y5,")") -> Adjusted forecast opex ($m, 2020-21) | C80: =+C74-SUM(C76:C79) -> 60.1864673 | D80: 60.90277339 | E80: 61.37298218 | F80: 61.93623904 | G80: 62.61222818 | H80: 307.0106901
